Workbook

Sheet Données brutes
A1: date_heure | B1: index_SSA3 | C1: index_SSA1 | D1: index_SSA2 | E1: index_PG1 | F1: index_PG2 | G1: index_PR | H1: index_PS | I1: index_SSA4 | J1: Created
A2: 2020-03-04T07:08:00 | B2: 374564 | J2: 2020-03-04T08:12:54
A3: 2020-03-04T06:53:00 | G3: 572263 | H3: 604145 | J3: 2020-03-04T08:12:52
A4: 2020-03-04T06:48:00 | C4: 929682 | D4: 127239 | E4: 668115 | F4: 575377 | J4: 2020-03-04T08:12:32
A5: 2020-03-03T07:22:00 | G5: 571636 | H5: 603540 | J5: 2020-03-04T08:12:53
A6: 2020-03-03T07:20:00 | C6: 929682 | D6: 127143 | E6: 666300 | F6: 573248 | J6: 2020-03-02T22:59:40
A7: 2020-03-03T05:48:00 | B7: 374564 | J7: 2020-03-03T08:49:09
A8: 2020-03-02T07:54:00 | G8: 570950 | H8: 602911 | J8: 2020-03-02T07:40:12
A9: 2020-03-02T07:07:00 | C9: 929682 | D9: 127045 | E9: 664563 | F9: 571251 | J9: 2020-03-02T07:40:02
A10: 2020-03-02T06:15:00 | B10: 374564 | J10: 2020-03-02T07:40:19
A11: 2020-03-01T06:25:00 | G11: 570230 | H11: 602245 | J11: 2020-03-02T07:40:09
A12: 2020-03-01T06:21:00 | D12: 126948 | E12: 662662 | F12: 569152 | J12: 2020-03-02T07:39:57
A13: 2020-02-29T09:19:00 | B13: 374564 | J13: 2020-03-02T07:40:17 | L13: Formule1 | M13: =MIN(A:A) -> 2019-11-12T06:11:00
A14: 2020-02-29T07:23:00 | B14: 374564 | J14: 2020-03-02T07:40:15 | L14: Formule2 | M14: =VLOOKUP($E$2,A:B,2,) -> 
A15: 2020-02-29T06:57:00 | G15: 569532 | H15: 601649 | J15: 2020-03-02T07:40:06 | L15: Formule3 | M15: =B2-F2 -> 374564
A16: 2020-02-29T06:30:00 | C16: 929682 | D16: 126847 | E16: 660886 | F16: 567481 | J16: 2020-03-02T07:39:53 | L16: Formule4 | M16: =G2-G3 -> -572263
A17: 2020-02-28T07:37:00 | B17: 374564 | J17: 2020-02-28T06:56:31 | L17: Formule5 | M17: =H2/24 -> 0
A18: 2020-02-28T07:26:00 | G18: 568862 | H18: 601058 | J18: 2020-02-28T06:56:29 | L18: Formule6 | M18: =I2*9 -> 0
A19: 2020-02-28T06:26:00 | D19: 126759 | E19: 659196 | F19: 565754 | J19: 2020-02-28T06:56:25
A20: 2020-02-27T07:00:00 | G20: 568176 | H20: 600405 | J20: 2020-02-26T23:36:15
A21: 2020-02-27T06:47:00 | D21: 126647 | E21: 657168 | F21: 563566 | J21: 2020-02-26T22:36:11
A22: 2020-02-27T06:46:00 | B22: 374564 | J22: 2020-02-26T23:21:10
A23: 2020-02-26T06:13:00 | C23: 929682 | D23: 126549 | E23: 655352 | F23: 561481 | J23: 2020-02-26T07:49:55
A24: 2020-02-26T06:07:00 | G24: 5675027 | H24: 599836 | J24: 2020-02-25T21:58:23
A25: 2020-02-26T06:07:00 | B25: 374563 | J25: 2020-02-25T22:18:22
A26: 2020-02-25T08:08:00 | B26: 374563 | J26: 2020-02-25T07:01:42
A27: 2020-02-25T06:46:00 | G27: 566810 | H27: 599255 | J27: 2020-02-25T07:01:35
A28: 2020-02-25T05:47:00 | C28: 929682 | D28: 126451 | E28: 653574 | F28: 559420 | J28: 2020-02-25T07:01:15
A29: 2020-02-24T06:30:00 | G29: 566143 | H29: 598657 | J29: 2020-02-25T07:01:32
A30: 2020-02-24T06:25:00 | C30: 929683 | D30: 128358 | E30: 651649 | F30: 557399 | J30: 2020-02-25T07:01:11
A31: 2020-02-24T06:22:00 | B31: 374563 | J31: 2020-02-25T07:01:49
A32: 2020-02-23T06:35:00 | B32: 3745635 | J32: 2020-02-25T07:01:40
A33: 2020-02-23T06:32:00 | C33: 929682 | D33: 126262 | E33: 649701 | F33: 555347 | J33: 2020-02-25T07:01:23
A34: 2020-02-23T06:06:00 | G34: 565512 | H34: 598106 | J34: 2020-02-25T07:01:30
A35: 2020-02-22T07:28:00 | G35: 564905 | H35: 597566 | J35: 2020-02-25T07:01:27
A36: 2020-02-22T06:35:00 | C36: 929682 | D36: 126163 | E36: 647823 | F36: 553271 | J36: 2020-02-25T07:01:07
A37: 2020-02-22T06:01:00 | B37: 374563 | J37: 2020-02-25T07:01:48
A38: 2020-02-21T06:31:00 | C38: 929682 | D38: 126060 | E38: 645920 | F38: 551098 | J38: 2020-02-21T07:10:42
A39: 2020-02-21T06:29:00 | G39: 564308 | H39: 597007 | J39: 2020-02-25T07:01:38
A40: 2020-02-21T05:40:00 | B40: 374563 | J40: 2020-02-25T07:01:46
A41: 2020-02-20T05:44:00 | C41: 929682 | D41: 125958 | E41: 644059 | F41: 549164 | J41: 2020-02-25T07:01:19
A42: 2020-02-20T05:38:00 | G42: 563666 | H42: 596440 | J42: 2020-02-20T07:59:10
A43: 2020-02-19T07:04:00 | G43: 563047.2 | H43: 595894.3 | J43: 2020-02-20T07:59:09
A44: 2020-02-19T07:00:00 | B44: 374563 | J44: 2020-02-20T07:59:26
A45: 2020-02-19T06:53:00 | C45: 929682 | D45: 125870 | E45: 642263 | F45: 547125 | J45: 2020-02-20T07:58:39
A46: 2020-02-18T06:45:00 | B46: 374563 | J46: 2020-02-20T07:59:25
A47: 2020-02-18T06:45:00 | C47: 929682.94 | D47: 125769.05 | E47: 640368.2 | F47: 544910.1 | J47: 2020-02-20T07:58:38
A48: 2020-02-18T06:45:00 | G48: 562420 | H48: 595344 | J48: 2020-02-20T07:59:09
A49: 2020-02-17T06:57:00 | G49: 561738 | H49: 594776 | J49: 2020-02-20T07:59:08
A50: 2020-02-17T06:55:00 | B50: 374563 | J50: 2020-02-20T07:59:24
A51: 2020-02-17T06:54:00 | C51: 929682 | D51: 125673 | E51: 638546 | F51: 542830 | J51: 2020-02-20T07:58:36
A52: 2020-02-16T07:37:00 | C52: 929682 | D52: 125578 | E52: 636625 | F52: 541373 | J52: 2020-02-20T07:58:35
A53: 2020-02-16T07:37:00 | B53: 374563 | J53: 2020-02-20T07:59:23
A54: 2020-02-16T07:37:00 | G54: 561030 | H54: 594190 | J54: 2020-02-20T07:59:07
A55: 2020-02-15T06:41:00 | B55: 374563 | J55: 2020-02-20T07:59:23
A56: 2020-02-15T06:38:00 | C56: 929882 | D56: 125467 | E56: 634497 | F56: 539334 | J56: 2020-02-20T07:58:34
A57: 2020-02-15T06:11:00 | G57: 560256 | H57: 593563 | J57: 2020-02-20T07:59:06
A58: 2020-02-14T08:46:00 | B58: 374563 | J58: 2020-02-20T07:59:22
A59: 2020-02-14T06:34:00 | G59: 559598 | H59: 593010 | J59: 2020-02-20T07:59:06
A60: 2020-02-14T06:19:00 | D60: 125368 | E60: 632641 | F60: 537240 | J60: 2020-02-20T07:58:32
A61: 2020-02-13T07:31:00 | B61: 374563 | J61: 2020-02-20T07:59:22
A62: 2020-02-13T07:31:00 | G62: 558926 | H62: 592418 | J62: 2020-02-20T07:59:05
A63: 2020-02-13T06:11:00 | C63: 929682 | D63: 125253 | E63: 630724 | F63: 535473 | J63: 2020-02-20T07:58:31
A64: 2020-02-12T07:28:00 | B64: 374563 | J64: 2020-02-20T07:59:21
A65: 2020-02-12T06:54:00 | C65: 929682 | D65: 125158 | E65: 628894 | F65: 533325 | J65: 2020-02-20T07:58:30
A66: 2020-02-12T06:19:00 | G66: 558284 | H66: 591831 | J66: 2020-02-20T07:59:04
A67: 2020-02-11T07:35:00 | G67: 557666 | H67: 591266 | J67: 2020-02-20T07:59:03
A68: 2020-02-11T06:24:00 | B68: 374563 | J68: 2020-02-20T07:59:20
A69: 2020-02-11T06:22:00 | C69: 929682 | D69: 125059 | E69: 626976 | F69: 531149 | J69: 2020-02-20T07:58:29
A70: 2020-02-10T05:48:00 | B70: 374562 | J70: 2020-02-20T07:59:20
A71: 2020-02-10T05:43:00 | C71: 929682 | D71: 124960 | E71: 625022 | F71: 529466 | J71: 2020-02-20T07:58:28
A72: 2020-02-10T05:43:00 | G72: 556912 | H72: 590646 | J72: 2020-02-20T07:59:03
A73: 2020-02-09T07:09:00 | B73: 374562 | J73: 2020-02-20T07:59:19
A74: 2020-02-09T05:50:00 | G74: 556239 | H74: 590063 | J74: 2020-02-20T07:59:02
A75: 2020-02-09T05:46:00 | C75: 929682 | D75: 124862 | E75: 623087 | F75: 528082 | J75: 2020-02-20T07:58:26
A76: 2020-02-08T07:23:00 | G76: 555627 | H76: 589528 | J76: 2020-02-20T07:59:00
A77: 2020-02-08T06:25:00 | C77: 929692 | D77: 124764 | E77: 621360 | F77: 526124 | J77: 2020-02-20T07:58:25
A78: 2020-02-08T06:17:00 | B78: 374562 | J78: 2020-02-20T07:59:19
A79: 2020-02-07T06:19:00 | B79: 374562 | J79: 2020-02-20T07:59:18
A80: 2020-02-07T06:16:00 | C80: 929682 | D80: 124658 | E80: 619471 | F80: 524031 | J80: 2020-02-20T07:58:24
A81: 2020-02-07T06:09:00 | G81: 554988 | H81: 588917 | J81: 2020-02-20T07:58:59
A82: 2020-02-06T06:30:00 | C82: 929682 | D82: 124559 | E82: 617610 | F82: 521961 | J82: 2020-02-20T07:58:23
A83: 2020-02-05T07:58:00 | B83: 374562 | J83: 2020-02-20T07:59:18
A84: 2020-02-05T07:57:00 | G84: 553837 | H84: 587880 | J84: 2020-02-20T07:58:58
A85: 2020-02-05T06:52:00 | C85: 0 | D85: 124464 | E85: 615857 | F85: 519957 | J85: 2020-02-20T07:58:21
A86: 2020-02-04T06:03:00 | C86: 0 | D86: 124361 | E86: 613940 | F86: 517691 | J86: 2020-02-20T07:58:20
A87: 2020-02-04T05:54:00 | G87: 553124 | H87: 587269 | J87: 2020-02-20T07:58:58
A88: 2020-02-04T05:52:00 | B88: 374562 | J88: 2020-02-20T07:59:17
A89: 2020-02-03T06:41:00 | B89: 374562 | J89: 2020-02-20T07:59:16
A90: 2020-02-03T06:30:00 | C90: 929682 | D90: 124269 | E90: 612077 | F90: 515724 | J90: 2020-02-20T07:58:19
A91: 2020-02-03T06:26:00 | G91: 552407 | H91: 5666758 | J91: 2020-02-20T07:58:57
A92: 2020-02-02T06:41:00 | C92: 929682 | D92: 124178 | E92: 6101628 | F92: 5138365 | J92: 2020-02-20T07:58:19
A93: 2020-02-02T06:38:00 | B93: 574562 | J93: 2020-02-20T07:59:16
A94: 2020-02-02T06:38:00 | G94: 551692 | H94: 586077 | J94: 2020-02-20T07:58:56
A95: 2020-02-01T06:22:00 | C95: 929682 | D95: 124080 | E95: 608228 | F95: 511865 | J95: 2020-02-20T07:58:17
A96: 2020-02-01T06:20:00 | B96: 374562 | J96: 2020-02-20T07:59:15
A97: 2020-02-01T06:03:00 | G97: 550974 | H97: 585466 | J97: 2020-02-20T07:58:56
A98: 2020-01-31T06:42:00 | G98: 550273 | H98: 584844 | J98: 2020-02-20T07:58:55
A99: 2020-01-31T06:17:00 | B99: 374562 | J99: 2020-02-20T07:59:15
A100: 2020-01-31T05:28:00 | D100: 123980 | E100: 606254 | F100: 509819 | J100: 2020-02-20T07:58:16
A101: 2020-01-30T07:31:00 | C101: 929682 | D101: 123892 | E101: 604517 | F101: 508002 | J101: 2020-02-20T07:58:14
A102: 2020-01-30T07:30:00 | B102: 374562 | J102: 2020-02-20T07:59:14
A103: 2020-01-30T07:07:00 | G103: 549632 | H103: 584280 | J103: 2020-02-20T07:58:54
A104: 2020-01-29T06:22:00 | C104: 929682 | D104: 123791 | E104: 602686 | F104: 505693 | J104: 2020-02-20T07:58:13
A105: 2020-01-29T06:17:00 | B105: 374562 | J105: 2020-02-20T07:59:13
A106: 2020-01-29T06:13:00 | G106: 549011 | H106: 583690 | J106: 2020-02-20T07:58:53
A107: 2020-01-28T06:41:00 | G107: 548407.5 | H107: 583116.6 | J107: 2020-02-20T07:58:53
A108: 2020-01-27T08:32:00 | B108: 374562 | J108: 2020-02-20T07:59:13
A109: 2020-01-25T07:56:00 | G109: 546738 | H109: 581444 | J109: 2020-02-20T07:58:52
A110: 2020-01-25T07:01:00 | B110: 374562 | J110: 2020-02-20T07:59:12
A111: 2020-01-25T06:47:00 | C111: 929682 | D111: 123397 | E111: 59483 | F111: 497873 | J111: 2020-02-20T07:51:54
A112: 2020-01-24T06:21:00 | B112: 374561 | J112: 2020-02-20T07:59:12
A113: 2020-01-24T06:18:00 | C113: 929682.94 | D113: 123292.96 | E113: 592812.2 | F113: 495598.8 | J113: 2020-02-20T07:51:53
A114: 2020-01-23T06:31:00 | C114: 929682 | D114: 123186 | E114: 590786 | F114: 493315 | J114: 2020-02-20T07:51:52
A115: 2020-01-22T05:44:00 | G115: 545414 | H115: 579865 | J115: 2020-02-20T07:58:51
A116: 2020-01-21T05:41:00 | G116: 544986 | H116: 579375 | J116: 2020-02-20T07:58:50
A117: 2020-01-20T07:07:00 | J117: 2020-02-20T07:58:49
A118: 2020-01-19T06:29:00 | G118: 544045 | H118: 578383 | J118: 2020-02-20T07:58:49
A119: 2020-01-18T07:06:00 | B119: 374561 | J119: 2020-02-20T07:53:09
A120: 2020-01-17T06:54:00 | G120: 542810 | H120: 577254 | J120: 2020-02-20T07:58:47
A121: 2020-01-16T06:23:00 | G121: 542156 | H121: 576659 | J121: 2020-02-20T07:58:47
A122: 2020-01-15T06:41:00 | C122: 929682.9 | D122: 122360.42 | E122: 575844.1 | F122: 476422.3 | J122: 2020-02-20T07:51:51
A123: 2020-01-15T06:40:00 | B123: 374561 | J123: 2020-02-20T07:53:09
A124: 2020-01-14T06:38:00 | G124: 540732 | H124: 575419 | J124: 2020-02-20T07:58:48
A125: 2020-01-14T06:35:00 | B125: 374561.756 | J125: 2020-02-20T07:53:08
A126: 2020-01-13T07:51:00 | G126: 540064 | H126: 574836 | J126: 2020-02-20T07:58:46
A127: 2020-01-13T06:54:00 | C127: 929682 | D127: 122158 | E127: 572052 | F127: 472965 | J127: 2020-02-20T07:51:50
A128: 2020-01-13T06:54:00 | B128: 374561 | J128: 2020-02-20T07:53:08
A129: 2020-01-12T08:49:00 | G129: 539412 | H129: 0 | J129: 2020-02-20T07:58:45
A130: 2020-01-12T06:52:00 | B130: 374561 | J130: 2020-02-20T07:53:07
A131: 2020-01-12T06:04:00 | C131: 929682 | D131: 122060 | E131: 570088 | F131: 470934 | J131: 2020-02-20T07:51:48
A132: 2020-01-11T07:22:00 | C132: 929682 | D132: 121961 | E132: 568182 | F132: 468822 | J132: 2020-02-20T07:51:47
A133: 2020-01-10T06:29:00 | B133: 374561 | J133: 2020-02-20T07:53:06
A134: 2020-01-09T05:50:00 | B134: 374561 | J134: 2020-02-20T07:53:06
A135: 2020-01-09T05:49:00 | C135: 929682 | D135: 121758 | E135: 564243 | F135: 464880 | J135: 2020-02-20T07:51:46
A136: 2020-01-09T05:46:00 | G136: 537445 | H136: 3.55 | J136: 2020-02-20T07:58:44
A137: 2020-01-08T08:14:00 | C137: 929682.94 | D137: 121666.65 | E137: 562463.9 | F137: 463010.7 | J137: 2020-02-20T07:51:45
A138: 2020-01-08T07:48:00 | B138: 374561 | J138: 2020-02-20T07:53:05
A139: 2020-01-08T06:45:00 | G139: 536849 | H139: 571999 | J139: 2020-02-20T07:58:43
A140: 2020-01-07T06:48:00 | B140: 374561.46 | J140: 2020-02-20T07:53:04
A141: 2020-01-07T06:41:00 | G141: 536236 | H141: 571429 | J141: 2020-02-20T07:58:42
A142: 2020-01-07T06:33:00 | C142: 929682 | D142: 121560 | E142: 560394 | F142: 460779 | J142: 2020-02-20T07:51:44
A143: 2020-01-06T07:22:00 | G143: 535746 | H143: 570900 | J143: 2020-02-20T07:58:41
A144: 2020-01-06T06:50:00 | B144: 374561 | J144: 2020-02-20T07:53:04
A145: 2020-01-06T06:04:00 | C145: 929682 | D145: 121453 | E145: 558403 | F145: 458631 | J145: 2020-02-20T07:51:43
A146: 2020-01-05T06:46:00 | G146: 535221 | H146: 570381 | I146: 298313 | J146: 2020-02-20T07:52:34
A147: 2020-01-05T06:44:00 | C147: 929682 | D147: 121353 | E147: 556473 | F147: 456543 | J147: 2020-02-20T07:51:42
A148: 2020-01-05T06:44:00 | B148: 374561 | J148: 2020-02-20T07:53:03
A149: 2020-01-04T07:23:00 | C149: 929682 | D149: 121250 | E149: 554571 | F149: 454417 | J149: 2020-02-20T07:51:41
A150: 2020-01-04T06:22:00 | G150: 534613.2 | H150: 569825 | I150: 0 | J150: 2020-02-20T07:52:34
A151: 2020-01-04T06:18:00 | B151: 374561 | J151: 2020-02-20T07:53:03
A152: 2020-01-03T07:30:00 | G152: 534007 | H152: 569278 | I152: 298313 | J152: 2020-02-20T07:52:33
A153: 2020-01-03T06:38:00 | C153: 929682 | D153: 121148 | E153: 552876 | F153: 452450 | J153: 2020-02-20T07:51:39
A154: 2020-01-03T06:30:00 | B154: 374561 | J154: 2020-02-20T07:53:02
A155: 2020-01-02T07:33:00 | G155: 533420 | H155: 568716 | I155: 298313 | J155: 2020-02-20T07:52:32
A156: 2020-01-02T07:07:00 | B156: 374561 | J156: 2020-02-20T07:53:01
A157: 2020-01-02T06:38:00 | C157: 929682 | D157: 121048 | E157: 550667 | F157: 450242 | J157: 2020-02-20T07:51:38
A158: 2019-12-31T06:32:00 | G158: 532327 | H158: 567607 | I158: 298313 | J158: 2020-02-20T07:52:31
A159: 2019-12-31T06:19:00 | B159: 374561 | J159: 2020-02-20T07:53:01
A160: 2019-12-31T06:15:00 | E160: 546923 | F160: 445988 | J160: 2020-02-20T07:51:37
A161: 2019-12-30T06:29:00 | B161: 374561 | J161: 2020-02-20T07:53:00
A162: 2019-12-30T06:26:00 | G162: 531845 | H162: 567084 | I162: 298313 | J162: 2020-02-20T07:52:30
A163: 2019-12-30T04:52:00 | C163: 929682 | D163: 120731 | E163: 544928 | F163: 443816 | J163: 2020-02-20T07:51:36
A164: 2019-12-29T06:01:00 | G164: 531258 | H164: 566506 | I164: 298313 | J164: 2020-02-20T07:52:30
A165: 2019-12-29T06:00:00 | B165: 374561 | J165: 2020-02-20T07:53:00
A166: 2019-12-29T05:50:00 | C166: 929682 | D166: 120629 | E166: 543031 | F166: 441718 | J166: 2020-02-20T07:51:35
A167: 2019-12-28T07:25:00 | G167: 530596 | H167: 565971 | I167: 298313 | J167: 2020-02-20T07:52:29
A168: 2019-12-28T06:51:00 | C168: 929682 | D168: 120535 | E168: 541317 | F168: 439663 | J168: 2020-02-20T07:51:33
A169: 2019-12-28T06:50:00 | B169: 374561 | J169: 2020-02-20T07:52:59
A170: 2019-12-27T06:46:00 | C170: 929682 | D170: 120439 | E170: 539633 | F170: 437695 | J170: 2020-02-20T07:51:32
A171: 2019-12-27T06:40:00 | G171: 529864.8 | H171: 565370.4 | I171: 298313.51 | J171: 2020-02-20T07:52:28
A172: 2019-12-27T06:37:00 | B172: 374561 | J172: 2020-02-20T07:52:59
A173: 2019-12-26T06:39:00 | G173: 529221 | H173: 564793 | I173: 298313 | J173: 2020-02-20T07:52:27
A174: 2019-12-25T05:32:00 | C174: 929682 | D174: 120236 | E174: 535621 | F174: 433232 | J174: 2020-02-20T07:51:31
A175: 2019-12-25T05:22:00 | B175: 374561 | J175: 2020-02-20T07:52:59
A176: 2019-12-25T05:22:00 | G176: 528493 | H176: 564153 | I176: 298313 | J176: 2020-02-20T07:52:27
A177: 2019-12-24T07:51:00 | J177: 2020-02-20T07:52:26
A178: 2019-12-24T06:41:00 | C178: 929682 | D178: 120124 | E178: 533845 | F178: 43129 | J178: 2020-02-20T07:51:29
A179: 2019-12-24T06:33:00 | B179: 374560 | J179: 2020-02-20T07:52:58
A180: 2019-12-23T06:26:00 | B180: 374560 | J180: 2020-02-20T07:52:57
A181: 2019-12-23T06:26:00 | C181: 929682 | D181: 119981 | E181: 531870 | F181: 429224 | J181: 2020-02-20T07:51:28
A182: 2019-12-23T06:23:00 | G182: 527210 | H182: 563164 | I182: 298313 | J182: 2020-02-20T07:52:25
A183: 2019-12-22T05:58:00 | C183: 929682 | D183: 119839 | E183: 530155 | F183: 427542 | J183: 2020-02-20T07:51:27
A184: 2019-12-22T05:57:00 | B184: 374560 | J184: 2020-02-20T07:52:56
A185: 2019-12-22T05:57:00 | G185: 526442 | H185: 562593 | I185: 298313 | J185: 2020-02-20T07:52:24
A186: 2019-12-21T07:02:00 | B186: 374560 | J186: 2020-02-25T07:01:44
A187: 2019-12-21T07:02:00 | B187: 374560 | J187: 2020-02-20T07:52:55
A188: 2019-12-21T06:01:00 | G188: 5257159 | H188: 562041 | I188: 298313 | J188: 2020-02-20T07:52:24
A189: 2019-12-21T05:59:00 | C189: 929682 | D189: 119696 | E189: 528377 | F189: 425827 | J189: 2020-02-20T07:51:26
A190: 2019-12-20T06:33:00 | G190: 524951 | H190: 561492 | I190: 298313 | J190: 2020-02-20T07:52:23
A191: 2019-12-19T06:03:00 | G191: 524195 | H191: 560942 | I191: 298313 | J191: 2020-02-20T07:52:22
A192: 2019-12-18T06:52:00 | B192: 374560 | J192: 2020-02-20T07:52:55
A193: 2019-12-17T08:52:00 | J193: 2020-02-20T07:52:54
A194: 2019-12-15T06:34:00 | G194: 521472 | H194: 558890 | I194: 298313 | J194: 2020-02-20T07:52:22
A195: 2019-12-14T08:06:00 | J195: 2020-02-20T07:52:21
A196: 2019-12-14T06:22:00 | B196: 374530 | J196: 2020-02-20T07:52:53
A197: 2019-12-13T07:06:00 | C197: 929882 | D197: 115873 | E197: 514471 | F197: 410297 | J197: 2020-02-20T07:51:25
A198: 2019-12-13T06:56:00 | G198: 519983 | H198: 557816 | I198: 298313 | J198: 2020-02-20T07:52:20
A199: 2019-12-12T06:37:00 | B199: 374530 | J199: 2020-02-20T07:52:53
A200: 2019-12-11T06:17:00 | G200: 518684 | H200: 556797 | I200: 298313 | J200: 2020-02-20T07:52:20
... 75 more rows

Sheet Graphiques

Sheet Consommation

Sheet SSA3
A1: date_heure | B1: index_SSA3 | E1: date jour0 | F1: total ssa3 jour0 | G1: différence compteur jour 0 | H1: difference 24h | I1: Débit/h dernière 24h | J1: Debit x9
A2: 2020-03-04T07:08:00 | B2: 374564 | E2: =MIN(A:A) -> 2019-11-12T06:11:00 | F2: =VLOOKUP($E$2,A:B,2,) -> 374559 | G2: =B2-F2 -> 5 | H2: =G2-G3 -> 0 | I2: =H2/24 -> 0 | J2: =I2*9 -> 0
A3: 2020-03-03T05:48:00 | B3: 374564 | F3: =VLOOKUP($E$2,A:B,2,) -> 374559 | G3: =B3-F3 -> 5 | H3: =G3-G4 -> 0 | I3: =H3/24 -> 0 | J3: =I3*9 -> 0
A4: 2020-03-02T06:15:00 | B4: 374564 | F4: =VLOOKUP($E$2,A:B,2,) -> 374559 | G4: 5 | H4: 0 | I4: 0 | J4: 0
A5: 2020-02-29T09:19:00 | B5: 374564 | F5: =VLOOKUP($E$2,A:B,2,) -> 374559 | G5: 5 | H5: 0 | I5: 0 | J5: 0
A6: 2020-02-29T07:23:00 | B6: 374564 | F6: =VLOOKUP($E$2,A:B,2,) -> 374559 | G6: 5 | H6: 0 | I6: 0 | J6: 0
A7: 2020-02-28T07:37:00 | B7: 374564 | F7: =VLOOKUP($E$2,A:B,2,) -> 374559 | G7: 5 | H7: 0 | I7: 0 | J7: 0
A8: 2020-02-27T06:46:00 | B8: 374564 | F8: =VLOOKUP($E$2,A:B,2,) -> 374559 | G8: 5 | H8: 1 | I8: 0.04166666667 | J8: 0.375
A9: 2020-02-26T06:07:00 | B9: 374563 | F9: =VLOOKUP($E$2,A:B,2,) -> 374559 | G9: 4 | H9: 0 | I9: 0 | J9: 0
A10: 2020-02-25T08:08:00 | B10: 374563 | F10: =VLOOKUP($E$2,A:B,2,) -> 374559 | G10: 4 | H10: 0 | I10: 0 | J10: 0
A11: 2020-02-24T06:22:00 | B11: 374563 | F11: =VLOOKUP($E$2,A:B,2,) -> 374559 | G11: 4 | H11: -3371072 | I11: -140461.3333 | J11: -1264152
A12: 2020-02-23T06:35:00 | B12: 3745635 | F12: =VLOOKUP($E$2,A:B,2,) -> 374559 | G12: 3371076 | H12: 3371072 | I12: 140461.3333 | J12: 1264152
A13: 2020-02-22T06:01:00 | B13: 374563 | F13: =VLOOKUP($E$2,A:B,2,) -> 374559 | G13: 4 | H13: 0 | I13: 0 | J13: 0
A14: 2020-02-21T05:40:00 | B14: 374563 | F14: =VLOOKUP($E$2,A:B,2,) -> 374559 | G14: 4 | H14: 0 | I14: 0 | J14: 0
A15: 2020-02-19T07:00:00 | B15: 374563 | F15: =VLOOKUP($E$2,A:B,2,) -> 374559 | G15: 4 | H15: 0 | I15: 0 | J15: 0
A16: 2020-02-18T06:45:00 | B16: 374563 | F16: =VLOOKUP($E$2,A:B,2,) -> 374559 | G16: 4 | H16: 0 | I16: 0 | J16: 0
A17: 2020-02-17T06:55:00 | B17: 374563 | F17: =VLOOKUP($E$2,A:B,2,) -> 374559 | G17: 4 | H17: 0 | I17: 0 | J17: 0
A18: 2020-02-16T07:37:00 | B18: 374563 | F18: =VLOOKUP($E$2,A:B,2,) -> 374559 | G18: 4 | H18: 0 | I18: 0 | J18: 0
A19: 2020-02-15T06:41:00 | B19: 374563 | F19: =VLOOKUP($E$2,A:B,2,) -> 374559 | G19: 4 | H19: 0 | I19: 0 | J19: 0
A20: 2020-02-14T08:46:00 | B20: 374563 | F20: =VLOOKUP($E$2,A:B,2,) -> 374559 | G20: 4 | H20: 0 | I20: 0 | J20: 0
A21: 2020-02-13T07:31:00 | B21: 374563 | F21: =VLOOKUP($E$2,A:B,2,) -> 374559 | G21: 4 | H21: 0 | I21: 0 | J21: 0
A22: 2020-02-12T07:28:00 | B22: 374563 | F22: =VLOOKUP($E$2,A:B,2,) -> 374559 | G22: 4 | H22: 0 | I22: 0 | J22: 0
A23: 2020-02-11T06:24:00 | B23: 374563 | F23: =VLOOKUP($E$2,A:B,2,) -> 374559 | G23: 4 | H23: 1 | I23: 0.04166666667 | J23: 0.375
A24: 2020-02-10T05:48:00 | B24: 374562 | F24: =VLOOKUP($E$2,A:B,2,) -> 374559 | G24: 3 | H24: 0 | I24: 0 | J24: 0
A25: 2020-02-09T07:09:00 | B25: 374562 | F25: =VLOOKUP($E$2,A:B,2,) -> 374559 | G25: 3 | H25: 0 | I25: 0 | J25: 0
A26: 2020-02-08T06:17:00 | B26: 374562 | F26: =VLOOKUP($E$2,A:B,2,) -> 374559 | G26: 3 | H26: 0 | I26: 0 | J26: 0
A27: 2020-02-07T06:19:00 | B27: 374562 | F27: =VLOOKUP($E$2,A:B,2,) -> 374559 | G27: 3 | H27: 0 | I27: 0 | J27: 0
A28: 2020-02-05T07:58:00 | B28: 374562 | F28: =VLOOKUP($E$2,A:B,2,) -> 374559 | G28: 3 | H28: 0 | I28: 0 | J28: 0
A29: 2020-02-04T05:52:00 | B29: 374562 | F29: =VLOOKUP($E$2,A:B,2,) -> 374559 | G29: 3 | H29: 0 | I29: 0 | J29: 0
A30: 2020-02-03T06:41:00 | B30: 374562 | F30: =VLOOKUP($E$2,A:B,2,) -> 374559 | G30: 3 | H30: -200000 | I30: -8333.333333 | J30: -75000
A31: 2020-02-02T06:38:00 | B31: 574562 | F31: =VLOOKUP($E$2,A:B,2,) -> 374559 | G31: 200003 | H31: 200000 | I31: 8333.333333 | J31: 75000
A32: 2020-02-01T06:20:00 | B32: 374562 | F32: =VLOOKUP($E$2,A:B,2,) -> 374559 | G32: 3 | H32: 0 | I32: 0 | J32: 0
A33: 2020-01-31T06:17:00 | B33: 374562 | F33: =VLOOKUP($E$2,A:B,2,) -> 374559 | G33: 3 | H33: 0 | I33: 0 | J33: 0
A34: 2020-01-30T07:30:00 | B34: 374562 | F34: =VLOOKUP($E$2,A:B,2,) -> 374559 | G34: 3 | H34: 0 | I34: 0 | J34: 0
A35: 2020-01-29T06:17:00 | B35: 374562 | F35: =VLOOKUP($E$2,A:B,2,) -> 374559 | G35: 3 | H35: 0 | I35: 0 | J35: 0
A36: 2020-01-27T08:32:00 | B36: 374562 | F36: =VLOOKUP($E$2,A:B,2,) -> 374559 | G36: 3 | H36: 0 | I36: 0 | J36: 0
A37: 2020-01-25T07:01:00 | B37: 374562 | F37: =VLOOKUP($E$2,A:B,2,) -> 374559 | G37: 3 | H37: 1 | I37: 0.04166666667 | J37: 0.375
A38: 2020-01-24T06:21:00 | B38: 374561 | F38: =VLOOKUP($E$2,A:B,2,) -> 374559 | G38: 2 | H38: 0 | I38: 0 | J38: 0
A39: 2020-01-18T07:06:00 | B39: 374561 | F39: =VLOOKUP($E$2,A:B,2,) -> 374559 | G39: 2 | H39: 0 | I39: 0 | J39: 0
A40: 2020-01-15T06:40:00 | B40: 374561 | F40: =VLOOKUP($E$2,A:B,2,) -> 374559 | G40: 2 | H40: -0.756 | I40: -0.0315 | J40: -0.2835
A41: 2020-01-14T06:35:00 | B41: 374561.756 | F41: =VLOOKUP($E$2,A:B,2,) -> 374559 | G41: 2.756 | H41: 0.756 | I41: 0.0315 | J41: 0.2835
A42: 2020-01-13T06:54:00 | B42: 374561 | F42: =VLOOKUP($E$2,A:B,2,) -> 374559 | G42: 2 | H42: 0 | I42: 0 | J42: 0
A43: 2020-01-12T06:52:00 | B43: 374561 | F43: =VLOOKUP($E$2,A:B,2,) -> 374559 | G43: 2 | H43: 0 | I43: 0 | J43: 0
A44: 2020-01-10T06:29:00 | B44: 374561 | F44: =VLOOKUP($E$2,A:B,2,) -> 374559 | G44: 2 | H44: 0 | I44: 0 | J44: 0
A45: 2020-01-09T05:50:00 | B45: 374561 | F45: =VLOOKUP($E$2,A:B,2,) -> 374559 | G45: 2 | H45: 0 | I45: 0 | J45: 0
A46: 2020-01-08T07:48:00 | B46: 374561 | F46: =VLOOKUP($E$2,A:B,2,) -> 374559 | G46: 2 | H46: -0.46 | I46: -0.01916666667 | J46: -0.1725
A47: 2020-01-07T06:48:00 | B47: 374561.46 | F47: =VLOOKUP($E$2,A:B,2,) -> 374559 | G47: 2.46 | H47: 0.46 | I47: 0.01916666667 | J47: 0.1725
A48: 2020-01-06T06:50:00 | B48: 374561 | F48: =VLOOKUP($E$2,A:B,2,) -> 374559 | G48: 2 | H48: 0 | I48: 0 | J48: 0
A49: 2020-01-05T06:44:00 | B49: 374561 | F49: =VLOOKUP($E$2,A:B,2,) -> 374559 | G49: 2 | H49: 0 | I49: 0 | J49: 0
A50: 2020-01-04T06:18:00 | B50: 374561 | F50: =VLOOKUP($E$2,A:B,2,) -> 374559 | G50: 2 | H50: 0 | I50: 0 | J50: 0
A51: 2020-01-03T06:30:00 | B51: 374561 | F51: =VLOOKUP($E$2,A:B,2,) -> 374559 | G51: 2 | H51: 0 | I51: 0 | J51: 0
A52: 2020-01-02T07:07:00 | B52: 374561 | F52: =VLOOKUP($E$2,A:B,2,) -> 374559 | G52: 2 | H52: 0 | I52: 0 | J52: 0
A53: 2019-12-31T06:19:00 | B53: 374561 | F53: =VLOOKUP($E$2,A:B,2,) -> 374559 | G53: 2 | H53: 0 | I53: 0 | J53: 0
A54: 2019-12-30T06:29:00 | B54: 374561 | F54: =VLOOKUP($E$2,A:B,2,) -> 374559 | G54: 2 | H54: 0 | I54: 0 | J54: 0
A55: 2019-12-29T06:00:00 | B55: 374561 | F55: =VLOOKUP($E$2,A:B,2,) -> 374559 | G55: 2 | H55: 0 | I55: 0 | J55: 0
A56: 2019-12-28T06:50:00 | B56: 374561 | F56: =VLOOKUP($E$2,A:B,2,) -> 374559 | G56: 2 | H56: 0 | I56: 0 | J56: 0
A57: 2019-12-27T06:37:00 | B57: 374561 | F57: =VLOOKUP($E$2,A:B,2,) -> 374559 | G57: 2 | H57: 0 | I57: 0 | J57: 0
A58: 2019-12-25T05:22:00 | B58: 374561 | F58: =VLOOKUP($E$2,A:B,2,) -> 374559 | G58: 2 | H58: 1 | I58: 0.04166666667 | J58: 0.375
A59: 2019-12-24T06:33:00 | B59: 374560 | F59: =VLOOKUP($E$2,A:B,2,) -> 374559 | G59: 1 | H59: 0 | I59: 0 | J59: 0
A60: 2019-12-23T06:26:00 | B60: 374560 | F60: =VLOOKUP($E$2,A:B,2,) -> 374559 | G60: 1 | H60: 0 | I60: 0 | J60: 0
A61: 2019-12-22T05:57:00 | B61: 374560 | F61: =VLOOKUP($E$2,A:B,2,) -> 374559 | G61: 1 | H61: 0 | I61: 0 | J61: 0
A62: 2019-12-21T07:02:00 | B62: 374560 | F62: =VLOOKUP($E$2,A:B,2,) -> 374559 | G62: 1 | H62: 0 | I62: 0 | J62: 0
A63: 2019-12-21T07:02:00 | B63: 374560 | F63: =VLOOKUP($E$2,A:B,2,) -> 374559 | G63: 1 | H63: 0 | I63: 0 | J63: 0
A64: 2019-12-18T06:52:00 | B64: 374560 | F64: =VLOOKUP($E$2,A:B,2,) -> 374559 | G64: 1 | H64: 30 | I64: 1.25 | J64: 11.25
A65: 2019-12-14T06:22:00 | B65: 374530 | F65: =VLOOKUP($E$2,A:B,2,) -> 374559 | G65: -29 | H65: 0 | I65: 0 | J65: 0
A66: 2019-12-12T06:37:00 | B66: 374530 | F66: =VLOOKUP($E$2,A:B,2,) -> 374559 | G66: -29 | H66: -29 | I66: -1.208333333 | J66: -10.875
A67: 2019-12-08T06:29:00 | B67: 374559 | F67: =VLOOKUP($E$2,A:B,2,) -> 374559 | G67: =B67-F67 -> 0 | H67: =G67-G68 -> 0 | I67: =H67/24 -> 0 | J67: =I67*9 -> 0
A68: 2019-12-04T08:18:00 | B68: 374559 | F68: =VLOOKUP($E$2,A:B,2,) -> 374559 | G68: 0 | H68: -0.76 | I68: -0.03166666667 | J68: -0.285
A69: 2019-12-03T06:30:00 | B69: 374559.76 | F69: =VLOOKUP($E$2,A:B,2,) -> 374559 | G69: 0.76 | H69: 0.76 | I69: 0.03166666667 | J69: 0.285
A70: 2019-12-02T06:52:00 | B70: 374559 | F70: =VLOOKUP($E$2,A:B,2,) -> 374559 | G70: 0 | H70: 0 | I70: 0 | J70: 0
A71: 2019-12-01T06:40:00 | B71: 374559 | F71: =VLOOKUP($E$2,A:B,2,) -> 374559 | G71: 0 | H71: 0 | I71: 0 | J71: 0
A72: 2019-11-30T06:54:00 | B72: 374559 | F72: =VLOOKUP($E$2,A:B,2,) -> 374559 | G72: 0 | H72: 0 | I72: 0 | J72: 0
A73: 2019-11-29T06:55:00 | B73: 374559 | F73: =VLOOKUP($E$2,A:B,2,) -> 374559 | G73: 0 | H73: 0 | I73: 0 | J73: 0
A74: 2019-11-28T06:29:00 | B74: 374559 | F74: =VLOOKUP($E$2,A:B,2,) -> 374559 | G74: 0 | H74: 0 | I74: 0 | J74: 0
A75: 2019-11-26T07:45:00 | B75: 374559 | F75: =VLOOKUP($E$2,A:B,2,) -> 374559 | G75: 0 | H75: 0 | I75: 0 | J75: 0
A76: 2019-11-25T06:08:00 | B76: 374559 | F76: =VLOOKUP($E$2,A:B,2,) -> 374559 | G76: 0 | H76: 0 | I76: 0 | J76: 0
A77: 2019-11-23T06:15:00 | B77: 374559 | F77: =VLOOKUP($E$2,A:B,2,) -> 374559 | G77: 0 | H77: 0 | I77: 0 | J77: 0
A78: 2019-11-22T06:15:00 | B78: 374559 | F78: =VLOOKUP($E$2,A:B,2,) -> 374559 | G78: 0 | H78: 0 | I78: 0 | J78: 0
A79: 2019-11-21T06:50:00 | B79: 374559 | F79: =VLOOKUP($E$2,A:B,2,) -> 374559 | G79: 0 | H79: 0 | I79: 0 | J79: 0
A80: 2019-11-20T07:30:00 | B80: 374559 | F80: =VLOOKUP($E$2,A:B,2,) -> 374559 | G80: 0 | H80: 0 | I80: 0 | J80: 0
A81: 2019-11-19T05:28:00 | B81: 374559 | F81: =VLOOKUP($E$2,A:B,2,) -> 374559 | G81: 0 | H81: 0 | I81: 0 | J81: 0
A82: 2019-11-18T07:02:00 | B82: 374559 | F82: =VLOOKUP($E$2,A:B,2,) -> 374559 | G82: 0 | H82: 0 | I82: 0 | J82: 0
A83: 2019-11-17T06:07:00 | B83: 374559 | F83: =VLOOKUP($E$2,A:B,2,) -> 374559 | G83: 0 | H83: 0 | I83: 0 | J83: 0
A84: 2019-11-16T06:13:00 | B84: 374559 | F84: =VLOOKUP($E$2,A:B,2,) -> 374559 | G84: 0 | H84: 0 | I84: 0 | J84: 0
A85: 2019-11-15T06:50:00 | B85: 374559 | F85: =VLOOKUP($E$2,A:B,2,) -> 374559 | G85: 0 | H85: 0 | I85: 0 | J85: 0
A86: 2019-11-13T06:38:00 | B86: 374559 | F86: =VLOOKUP($E$2,A:B,2,) -> 374559 | G86: 0 | H86: 0 | I86: 0 | J86: 0
A87: 2019-11-12T06:11:00 | B87: 374559 | F87: =VLOOKUP($E$2,A:B,2,) -> 374559 | G87: 0 | H87: =G87-#REF! -> 

Sheet SSA1
A1: date_heure | B1: index_SSA1 | E1: date jour 0 | F1: total ssa1 jour0 | G1: différence compteur jour 0 | H1: difference 24h | I1: Débit/h dernière 24h | J1: Debit x9
A2: 2020-03-04T06:48:00 | B2: 929682 | E2: =MIN(A:A) -> 2019-11-12T06:17:00 | F2: =VLOOKUP($E$2,A:B,2,) -> 929682 | G2: =B2-F2 -> 0 | H2: =G2-G3 -> 0 | I2: =H2/24 -> 0 | J2: =I2*9 -> 0
A3: 2020-03-03T07:20:00 | B3: 929682 | F3: 929682 | G3: =B3-F3 -> 0 | H3: =G3-G4 -> 0 | I3: =H3/24 -> 0 | J3: =I3*9 -> 0
A4: 2020-03-02T07:07:00 | B4: 929682 | F4: 929682 | G4: 0 | H4: 0 | I4: 0 | J4: 0
A5: 2020-02-29T06:30:00 | B5: 929682 | F5: 929682 | G5: 0 | H5: 0 | I5: 0 | J5: 0
A6: 2020-02-26T06:13:00 | B6: 929682 | F6: 929682 | G6: 0 | H6: 0 | I6: 0 | J6: 0
A7: 2020-02-25T05:47:00 | B7: 929682 | F7: 929682 | G7: 0 | H7: -1 | I7: -0.04166666667 | J7: -0.375
A8: 2020-02-24T06:25:00 | B8: 929683 | F8: 929682 | G8: 1 | H8: 1 | I8: 0.04166666667 | J8: 0.375
A9: 2020-02-23T06:32:00 | B9: 929682 | F9: 929682 | G9: 0 | H9: 0 | I9: 0 | J9: 0
A10: 2020-02-22T06:35:00 | B10: 929682 | F10: 929682 | G10: 0 | H10: 0 | I10: 0 | J10: 0
A11: 2020-02-21T06:31:00 | B11: 929682 | F11: 929682 | G11: 0 | H11: 0 | I11: 0 | J11: 0
A12: 2020-02-20T05:44:00 | B12: 929682 | F12: 929682 | G12: 0 | H12: 0 | I12: 0 | J12: 0
A13: 2020-02-19T06:53:00 | B13: 929682 | F13: 929682 | G13: 0 | H13: -0.9399999999 | I13: -0.03916666666 | J13: -0.3525
A14: 2020-02-18T06:45:00 | B14: 929682.94 | F14: 929682 | G14: 0.9399999999 | H14: 0.9399999999 | I14: 0.03916666666 | J14: 0.3525
A15: 2020-02-17T06:54:00 | B15: 929682 | F15: 929682 | G15: 0 | H15: 0 | I15: 0 | J15: 0
A16: 2020-02-16T07:37:00 | B16: 929682 | F16: 929682 | G16: 0 | H16: -200 | I16: -8.333333333 | J16: -75
A17: 2020-02-15T06:38:00 | B17: 929882 | F17: 929682 | G17: 200 | H17: 200 | I17: 8.333333333 | J17: 75
A18: 2020-02-13T06:11:00 | B18: 929682 | F18: 929682 | G18: 0 | H18: 0 | I18: 0 | J18: 0
A19: 2020-02-12T06:54:00 | B19: 929682 | F19: 929682 | G19: 0 | H19: 0 | I19: 0 | J19: 0
A20: 2020-02-11T06:22:00 | B20: 929682 | F20: 929682 | G20: 0 | H20: 0 | I20: 0 | J20: 0
A21: 2020-02-10T05:43:00 | B21: 929682 | F21: 929682 | G21: 0 | H21: 0 | I21: 0 | J21: 0
A22: 2020-02-09T05:46:00 | B22: 929682 | F22: 929682 | G22: 0 | H22: -10 | I22: -0.4166666667 | J22: -3.75
A23: 2020-02-08T06:25:00 | B23: 929692 | F23: 929682 | G23: 10 | H23: 10 | I23: 0.4166666667 | J23: 3.75
A24: 2020-02-07T06:16:00 | B24: 929682 | F24: 929682 | G24: 0 | H24: 0 | I24: 0 | J24: 0
A25: 2020-02-06T06:30:00 | B25: 929682 | F25: 929682 | G25: 0 | H25: 929682 | I25: 38736.75 | J25: 348630.75
A26: 2020-02-05T06:52:00 | B26: 0 | F26: 929682 | G26: -929682 | H26: 0 | I26: 0 | J26: 0
A27: 2020-02-04T06:03:00 | B27: 0 | F27: 929682 | G27: -929682 | H27: -929682 | I27: -38736.75 | J27: -348630.75
A28: 2020-02-03T06:30:00 | B28: 929682 | F28: 929682 | G28: 0 | H28: 0 | I28: 0 | J28: 0
A29: 2020-02-02T06:41:00 | B29: 929682 | F29: 929682 | G29: 0 | H29: 0 | I29: 0 | J29: 0
A30: 2020-02-01T06:22:00 | B30: 929682 | F30: 929682 | G30: 0 | H30: 0 | I30: 0 | J30: 0
A31: 2020-01-30T07:31:00 | B31: 929682 | F31: 929682 | G31: 0 | H31: 0 | I31: 0 | J31: 0
A32: 2020-01-29T06:22:00 | B32: 929682 | F32: 929682 | G32: 0 | H32: 0 | I32: 0 | J32: 0
A33: 2020-01-25T06:47:00 | B33: 929682 | F33: 929682 | G33: 0 | H33: -0.9399999999 | I33: -0.03916666666 | J33: -0.3525
A34: 2020-01-24T06:18:00 | B34: 929682.94 | F34: =VLOOKUP($E$2,A:B,2,) -> 929682 | G34: 0.9399999999 | H34: 0.9399999999 | I34: 0.03916666666 | J34: 0.3525
A35: 2020-01-23T06:31:00 | B35: 929682 | F35: 929682 | G35: 0 | H35: -0.9 | I35: -0.0375 | J35: -0.3375
A36: 2020-01-15T06:41:00 | B36: 929682.9 | F36: 929682 | G36: 0.9 | H36: 0.9 | I36: 0.0375 | J36: 0.3375
A37: 2020-01-13T06:54:00 | B37: 929682 | F37: 929682 | G37: 0 | H37: 0 | I37: 0 | J37: 0
A38: 2020-01-12T06:04:00 | B38: 929682 | F38: 929682 | G38: 0 | H38: 0 | I38: 0 | J38: 0
A39: 2020-01-11T07:22:00 | B39: 929682 | F39: 929682 | G39: 0 | H39: 0 | I39: 0 | J39: 0
A40: 2020-01-09T05:49:00 | B40: 929682 | F40: 929682 | G40: 0 | H40: -0.9399999999 | I40: -0.03916666666 | J40: -0.3525
A41: 2020-01-08T08:14:00 | B41: 929682.94 | F41: 929682 | G41: 0.9399999999 | H41: 0.9399999999 | I41: 0.03916666666 | J41: 0.3525
A42: 2020-01-07T06:33:00 | B42: 929682 | F42: 929682 | G42: 0 | H42: 0 | I42: 0 | J42: 0
A43: 2020-01-06T06:04:00 | B43: 929682 | F43: 929682 | G43: 0 | H43: 0 | I43: 0 | J43: 0
A44: 2020-01-05T06:44:00 | B44: 929682 | F44: 929682 | G44: 0 | H44: 0 | I44: 0 | J44: 0
A45: 2020-01-04T07:23:00 | B45: 929682 | F45: 929682 | G45: 0 | H45: 0 | I45: 0 | J45: 0
A46: 2020-01-03T06:38:00 | B46: 929682 | F46: 929682 | G46: 0 | H46: 0 | I46: 0 | J46: 0
A47: 2020-01-02T06:38:00 | B47: 929682 | F47: 929682 | G47: 0 | H47: 0 | I47: 0 | J47: 0
A48: 2019-12-30T04:52:00 | B48: 929682 | F48: 929682 | G48: 0 | H48: 0 | I48: 0 | J48: 0
A49: 2019-12-29T05:50:00 | B49: 929682 | F49: 929682 | G49: 0 | H49: 0 | I49: 0 | J49: 0
A50: 2019-12-28T06:51:00 | B50: 929682 | F50: 929682 | G50: 0 | H50: 0 | I50: 0 | J50: 0
A51: 2019-12-27T06:46:00 | B51: 929682 | F51: 929682 | G51: 0 | H51: 0 | I51: 0 | J51: 0
A52: 2019-12-25T05:32:00 | B52: 929682 | F52: 929682 | G52: 0 | H52: 0 | I52: 0 | J52: 0
A53: 2019-12-24T06:41:00 | B53: 929682 | F53: 929682 | G53: 0 | H53: 0 | I53: 0 | J53: 0
A54: 2019-12-23T06:26:00 | B54: 929682 | F54: 929682 | G54: 0 | H54: 0 | I54: 0 | J54: 0
A55: 2019-12-22T05:58:00 | B55: 929682 | F55: 929682 | G55: 0 | H55: 0 | I55: 0 | J55: 0
A56: 2019-12-21T05:59:00 | B56: 929682 | F56: 929682 | G56: 0 | H56: -200 | I56: -8.333333333 | J56: -75
A57: 2019-12-13T07:06:00 | B57: 929882 | F57: 929682 | G57: 200 | H57: 200 | I57: 8.333333333 | J57: 75
A58: 2019-12-10T10:01:00 | B58: 929682 | F58: 929682 | G58: 0 | H58: 0 | I58: 0 | J58: 0
A59: 2019-12-06T06:37:00 | B59: 929682 | F59: 929682 | G59: 0 | H59: 0 | I59: 0 | J59: 0
A60: 2019-12-04T06:14:00 | B60: 929682 | F60: 929682 | G60: 0 | H60: 0 | I60: 0 | J60: 0
A61: 2019-12-03T06:29:00 | B61: 929682 | F61: 929682 | G61: 0 | H61: 0 | I61: 0 | J61: 0
A62: 2019-12-02T06:01:00 | B62: 929682 | F62: 929682 | G62: 0 | H62: 0 | I62: 0 | J62: 0
A63: 2019-12-01T06:39:00 | B63: 929682 | F63: 929682 | G63: 0 | H63: -0.9 | I63: -0.0375 | J63: -0.3375
A64: 2019-11-30T06:22:00 | B64: 929682.9 | F64: 929682 | G64: 0.9 | H64: 0.9 | I64: 0.0375 | J64: 0.3375
A65: 2019-11-28T05:53:00 | B65: 929682 | F65: 929682 | G65: 0 | H65: 0 | I65: 0 | J65: 0
A66: 2019-11-27T06:58:00 | B66: 929682 | F66: =VLOOKUP($E$2,A:B,2,) -> 929682 | G66: 0 | H66: 0 | I66: 0 | J66: 0
A67: 2019-11-26T09:10:00 | B67: 929682 | F67: 929682 | G67: =B67-F67 -> 0 | H67: =G67-G68 -> 0 | I67: =H67/24 -> 0 | J67: =I67*9 -> 0
A68: 2019-11-25T05:59:00 | B68: 929682 | F68: 929682 | G68: 0 | H68: 0 | I68: 0 | J68: 0
A69: 2019-11-24T07:02:00 | B69: 929682 | F69: 929682 | G69: 0 | H69: 929682 | I69: 38736.75 | J69: 348630.75
A70: 2019-11-23T06:35:00 | B70: 0 | F70: 929682 | G70: -929682 | H70: -929683 | I70: -38736.79167 | J70: -348631.125
A71: 2019-11-22T06:22:00 | B71: 929683 | F71: 929682 | G71: 1 | H71: 1 | I71: 0.04166666667 | J71: 0.375
A72: 2019-11-21T07:02:00 | B72: 929682 | F72: 929682 | G72: 0 | H72: 0 | I72: 0 | J72: 0
A73: 2019-11-19T05:21:00 | B73: 929682 | F73: 929682 | G73: 0 | H73: 0 | I73: 0 | J73: 0
A74: 2019-11-18T06:06:00 | B74: 929682 | F74: 929682 | G74: 0 | H74: 0 | I74: 0 | J74: 0
A75: 2019-11-17T06:11:00 | B75: 929682 | F75: 929682 | G75: 0 | H75: 0 | I75: 0 | J75: 0
A76: 2019-11-16T06:13:00 | B76: 929682 | F76: 929682 | G76: 0 | H76: 0 | I76: 0 | J76: 0
A77: 2019-11-15T06:56:00 | B77: 929682 | F77: 929682 | G77: 0 | H77: -1 | I77: -0.04166666667 | J77: -0.375
A78: 2019-11-13T06:38:00 | B78: 929683 | F78: 929682 | G78: 1 | H78: 1 | I78: 0.04166666667 | J78: 0.375
A79: 2019-11-12T06:17:00 | B79: 929682 | F79: 929682 | G79: 0 | H79: =G79-#REF! -> 

Sheet SSA2
A1: date_heure | B1: index_SSA2 | E1: date jour 0 | F1: total ssa2 jour0 | G1: différence compteur jour 0 | H1: difference 24h | I1: Débit/h dernière 24h | J1: Debit x9
A2: 2020-03-04T06:48:00 | B2: 127239 | E2: =MIN(A:A) -> 2019-11-12T06:17:00 | F2: =VLOOKUP($E$2,A:B,2,) -> 115669 | G2: =B2-F2 -> 11570 | H2: =G2-G3 -> 96 | I2: =H2/24 -> 4 | J2: =I2*9 -> 36
A3: 2020-03-03T07:20:00 | B3: 127143 | F3: 115669 | G3: =B3-F3 -> 11474 | H3: =G3-G4 -> 98 | I3: =H3/24 -> 4.083333333 | J3: =I3*9 -> 36.75
A4: 2020-03-02T07:07:00 | B4: 127045 | F4: 115669 | G4: 11376 | H4: 97 | I4: 4.041666667 | J4: 36.375
A5: 2020-03-01T06:21:00 | B5: 126948 | F5: 115669 | G5: 11279 | H5: 101 | I5: 4.208333333 | J5: 37.875
A6: 2020-02-29T06:30:00 | B6: 126847 | F6: 115669 | G6: 11178 | H6: 88 | I6: 3.666666667 | J6: 33
A7: 2020-02-28T06:26:00 | B7: 126759 | F7: 115669 | G7: 11090 | H7: 112 | I7: 4.666666667 | J7: 42
A8: 2020-02-27T06:47:00 | B8: 126647 | F8: 115669 | G8: 10978 | H8: 98 | I8: 4.083333333 | J8: 36.75
A9: 2020-02-26T06:13:00 | B9: 126549 | F9: 115669 | G9: 10880 | H9: 98 | I9: 4.083333333 | J9: 36.75
A10: 2020-02-25T05:47:00 | B10: 126451 | F10: 115669 | G10: 10782 | H10: -1907 | I10: -79.45833333 | J10: -715.125
A11: 2020-02-24T06:25:00 | B11: 128358 | F11: 115669 | G11: 12689 | H11: 2096 | I11: 87.33333333 | J11: 786
A12: 2020-02-23T06:32:00 | B12: 126262 | F12: 115669 | G12: 10593 | H12: 99 | I12: 4.125 | J12: 37.125
A13: 2020-02-22T06:35:00 | B13: 126163 | F13: 115669 | G13: 10494 | H13: 103 | I13: 4.291666667 | J13: 38.625
A14: 2020-02-21T06:31:00 | B14: 126060 | F14: 115669 | G14: 10391 | H14: 102 | I14: 4.25 | J14: 38.25
A15: 2020-02-20T05:44:00 | B15: 125958 | F15: 115669 | G15: 10289 | H15: 88 | I15: 3.666666667 | J15: 33
A16: 2020-02-19T06:53:00 | B16: 125870 | F16: 115669 | G16: 10201 | H16: 100.95 | I16: 4.20625 | J16: 37.85625
A17: 2020-02-18T06:45:00 | B17: 125769.05 | F17: 115669 | G17: 10100.05 | H17: 96.05 | I17: 4.002083333 | J17: 36.01875
A18: 2020-02-17T06:54:00 | B18: 125673 | F18: 115669 | G18: 10004 | H18: 95 | I18: 3.958333333 | J18: 35.625
A19: 2020-02-16T07:37:00 | B19: 125578 | F19: 115669 | G19: 9909 | H19: 111 | I19: 4.625 | J19: 41.625
A20: 2020-02-15T06:38:00 | B20: 125467 | F20: 115669 | G20: 9798 | H20: 99 | I20: 4.125 | J20: 37.125
A21: 2020-02-14T06:19:00 | B21: 125368 | F21: 115669 | G21: 9699 | H21: 115 | I21: 4.791666667 | J21: 43.125
A22: 2020-02-13T06:11:00 | B22: 125253 | F22: 115669 | G22: 9584 | H22: 95 | I22: 3.958333333 | J22: 35.625
A23: 2020-02-12T06:54:00 | B23: 125158 | F23: 115669 | G23: 9489 | H23: 99 | I23: 4.125 | J23: 37.125
A24: 2020-02-11T06:22:00 | B24: 125059 | F24: 115669 | G24: 9390 | H24: 99 | I24: 4.125 | J24: 37.125
A25: 2020-02-10T05:43:00 | B25: 124960 | F25: 115669 | G25: 9291 | H25: 98 | I25: 4.083333333 | J25: 36.75
A26: 2020-02-09T05:46:00 | B26: 124862 | F26: 115669 | G26: 9193 | H26: 98 | I26: 4.083333333 | J26: 36.75
A27: 2020-02-08T06:25:00 | B27: 124764 | F27: 115669 | G27: 9095 | H27: 106 | I27: 4.416666667 | J27: 39.75
A28: 2020-02-07T06:16:00 | B28: 124658 | F28: 115669 | G28: 8989 | H28: 99 | I28: 4.125 | J28: 37.125
A29: 2020-02-06T06:30:00 | B29: 124559 | F29: 115669 | G29: 8890 | H29: 95 | I29: 3.958333333 | J29: 35.625
A30: 2020-02-05T06:52:00 | B30: 124464 | F30: 115669 | G30: 8795 | H30: 103 | I30: 4.291666667 | J30: 38.625
A31: 2020-02-04T06:03:00 | B31: 124361 | F31: 115669 | G31: 8692 | H31: 92 | I31: 3.833333333 | J31: 34.5
A32: 2020-02-03T06:30:00 | B32: 124269 | F32: 115669 | G32: 8600 | H32: 91 | I32: 3.791666667 | J32: 34.125
A33: 2020-02-02T06:41:00 | B33: 124178 | F33: 115669 | G33: 8509 | H33: 98 | I33: 4.083333333 | J33: 36.75
A34: 2020-02-01T06:22:00 | B34: 124080 | F34: =VLOOKUP($E$2,A:B,2,) -> 115669 | G34: 8411 | H34: 100 | I34: 4.166666667 | J34: 37.5
A35: 2020-01-31T05:28:00 | B35: 123980 | F35: 115669 | G35: 8311 | H35: 88 | I35: 3.666666667 | J35: 33
A36: 2020-01-30T07:31:00 | B36: 123892 | F36: 115669 | G36: 8223 | H36: 101 | I36: 4.208333333 | J36: 37.875
A37: 2020-01-29T06:22:00 | B37: 123791 | F37: 115669 | G37: 8122 | H37: 394 | I37: 16.41666667 | J37: 147.75
A38: 2020-01-25T06:47:00 | B38: 123397 | F38: 115669 | G38: 7728 | H38: 104.04 | I38: 4.335 | J38: 39.015
A39: 2020-01-24T06:18:00 | B39: 123292.96 | F39: 115669 | G39: 7623.96 | H39: 106.96 | I39: 4.456666667 | J39: 40.11
A40: 2020-01-23T06:31:00 | B40: 123186 | F40: 115669 | G40: 7517 | H40: 825.58 | I40: 34.39916667 | J40: 309.5925
A41: 2020-01-15T06:41:00 | B41: 122360.42 | F41: 115669 | G41: 6691.42 | H41: 202.42 | I41: 8.434166667 | J41: 75.9075
A42: 2020-01-13T06:54:00 | B42: 122158 | F42: 115669 | G42: 6489 | H42: 98 | I42: 4.083333333 | J42: 36.75
A43: 2020-01-12T06:04:00 | B43: 122060 | F43: 115669 | G43: 6391 | H43: 99 | I43: 4.125 | J43: 37.125
A44: 2020-01-11T07:22:00 | B44: 121961 | F44: 115669 | G44: 6292 | H44: 203 | I44: 8.458333333 | J44: 76.125
A45: 2020-01-09T05:49:00 | B45: 121758 | F45: 115669 | G45: 6089 | H45: 91.35 | I45: 3.80625 | J45: 34.25625
A46: 2020-01-08T08:14:00 | B46: 121666.65 | F46: 115669 | G46: 5997.65 | H46: 106.65 | I46: 4.44375 | J46: 39.99375
A47: 2020-01-07T06:33:00 | B47: 121560 | F47: 115669 | G47: 5891 | H47: 107 | I47: 4.458333333 | J47: 40.125
A48: 2020-01-06T06:04:00 | B48: 121453 | F48: 115669 | G48: 5784 | H48: 100 | I48: 4.166666667 | J48: 37.5
A49: 2020-01-05T06:44:00 | B49: 121353 | F49: 115669 | G49: 5684 | H49: 103 | I49: 4.291666667 | J49: 38.625
A50: 2020-01-04T07:23:00 | B50: 121250 | F50: 115669 | G50: 5581 | H50: 102 | I50: 4.25 | J50: 38.25
A51: 2020-01-03T06:38:00 | B51: 121148 | F51: 115669 | G51: 5479 | H51: 100 | I51: 4.166666667 | J51: 37.5
A52: 2020-01-02T06:38:00 | B52: 121048 | F52: 115669 | G52: 5379 | H52: 317 | I52: 13.20833333 | J52: 118.875
A53: 2019-12-30T04:52:00 | B53: 120731 | F53: 115669 | G53: 5062 | H53: 102 | I53: 4.25 | J53: 38.25
A54: 2019-12-29T05:50:00 | B54: 120629 | F54: 115669 | G54: 4960 | H54: 94 | I54: 3.916666667 | J54: 35.25
A55: 2019-12-28T06:51:00 | B55: 120535 | F55: 115669 | G55: 4866 | H55: 96 | I55: 4 | J55: 36
A56: 2019-12-27T06:46:00 | B56: 120439 | F56: 115669 | G56: 4770 | H56: 203 | I56: 8.458333333 | J56: 76.125
A57: 2019-12-25T05:32:00 | B57: 120236 | F57: 115669 | G57: 4567 | H57: 112 | I57: 4.666666667 | J57: 42
A58: 2019-12-24T06:41:00 | B58: 120124 | F58: 115669 | G58: 4455 | H58: 143 | I58: 5.958333333 | J58: 53.625
A59: 2019-12-23T06:26:00 | B59: 119981 | F59: 115669 | G59: 4312 | H59: 142 | I59: 5.916666667 | J59: 53.25
A60: 2019-12-22T05:58:00 | B60: 119839 | F60: 115669 | G60: 4170 | H60: 143 | I60: 5.958333333 | J60: 53.625
A61: 2019-12-21T05:59:00 | B61: 119696 | F61: 115669 | G61: 4027 | H61: 3823 | I61: 159.2916667 | J61: 1433.625
A62: 2019-12-13T07:06:00 | B62: 115873 | F62: 115669 | G62: 204 | H62: -2708 | I62: -112.8333333 | J62: -1015.5
A63: 2019-12-10T10:01:00 | B63: 118581 | F63: 115669 | G63: 2912 | H63: 409 | I63: 17.04166667 | J63: 153.375
A64: 2019-12-06T06:37:00 | B64: 118172 | F64: 115669 | G64: 2503 | H64: 218 | I64: 9.083333333 | J64: 81.75
A65: 2019-12-04T06:14:00 | B65: 117954 | F65: 115669 | G65: 2285 | H65: 103 | I65: 4.291666667 | J65: 38.625
A66: 2019-12-03T06:29:00 | B66: 117851 | F66: =VLOOKUP($E$2,A:B,2,) -> 115669 | G66: 2182 | H66: 104 | I66: 4.333333333 | J66: 39
A67: 2019-12-02T06:01:00 | B67: 117747 | F67: 115669 | G67: =B67-F67 -> 2078 | H67: =G67-G68 -> 107 | I67: =H67/24 -> 4.458333333 | J67: =I67*9 -> 40.125
A68: 2019-12-01T06:39:00 | B68: 117640 | F68: 115669 | G68: 1971 | H68: 101.75 | I68: 4.239583333 | J68: 38.15625
A69: 2019-11-30T06:22:00 | B69: 117538.25 | F69: 115669 | G69: 1869.25 | H69: 197.25 | I69: 8.21875 | J69: 73.96875
A70: 2019-11-28T05:53:00 | B70: 117341 | F70: 115669 | G70: 1672 | H70: 92 | I70: 3.833333333 | J70: 34.5
A71: 2019-11-27T06:58:00 | B71: 117249 | F71: 115669 | G71: 1580 | H71: 95 | I71: 3.958333333 | J71: 35.625
A72: 2019-11-26T09:10:00 | B72: 117154 | F72: 115669 | G72: 1485 | H72: 113 | I72: 4.708333333 | J72: 42.375
A73: 2019-11-25T05:59:00 | B73: 117041 | F73: 115669 | G73: 1372 | H73: 99 | I73: 4.125 | J73: 37.125
A74: 2019-11-24T07:02:00 | B74: 116942 | F74: 115669 | G74: 1273 | H74: 103 | I74: 4.291666667 | J74: 38.625
A75: 2019-11-23T06:35:00 | B75: 116839 | F75: 115669 | G75: 1170 | H75: 107 | I75: 4.458333333 | J75: 40.125
A76: 2019-11-22T06:22:00 | B76: 116732 | F76: 115669 | G76: 1063 | H76: 101 | I76: 4.208333333 | J76: 37.875
A77: 2019-11-21T07:02:00 | B77: 116631 | F77: 115669 | G77: 962 | H77: 108 | I77: 4.5 | J77: 40.5
A78: 2019-11-20T06:21:00 | B78: 116523 | F78: 115669 | G78: 854 | H78: 108 | I78: 4.5 | J78: 40.5
A79: 2019-11-19T05:21:00 | B79: 116415 | F79: 115669 | G79: 746 | H79: 97 | I79: 4.041666667 | J79: 36.375
A80: 2019-11-18T06:06:00 | B80: 116318 | F80: 115669 | G80: 649 | H80: 112 | I80: 4.666666667 | J80: 42
A81: 2019-11-17T06:11:00 | B81: 116206 | F81: 115669 | G81: 537 | H81: 113 | I81: 4.708333333 | J81: 42.375
A82: 2019-11-16T06:13:00 | B82: 116093 | F82: 115669 | G82: 424 | H82: 102 | I82: 4.25 | J82: 38.25
A83: 2019-11-15T06:56:00 | B83: 115991 | F83: 115669 | G83: 322 | H83: 217 | I83: 9.041666667 | J83: 81.375
A84: 2019-11-13T06:38:00 | B84: 115774 | F84: 115669 | G84: 105 | H84: 105 | I84: 4.375 | J84: 39.375
A85: 2019-11-12T06:17:00 | B85: 115669 | F85: 115669 | G85: 0 | H85: =G85-#REF! -> 

Sheet PG1
A1: date_heure | B1: index_PG1 | E1: date jour 0 | F1: total pg1 jour0 | G1: différence compteur jour 0 | H1: difference 24h | I1: Débit/h dernière 24h | J1: Debit x9
A2: 2020-03-04T06:48:00 | B2: 668115 | E2: =MIN(A:A) -> 2019-11-12T06:17:00 | F2: =VLOOKUP($E$2,A:B,2,) -> 457612 | G2: =B2-F2 -> 210503 | H2: =G2-G3 -> 1815 | I2: =H2/24 -> 75.625 | J2: =I2*9 -> 680.625
A3: 2020-03-03T07:20:00 | B3: 666300 | F3: 457612 | G3: =B3-F3 -> 208688 | H3: =G3-G4 -> 1737 | I3: =H3/24 -> 72.375 | J3: =I3*9 -> 651.375
A4: 2020-03-02T07:07:00 | B4: 664563 | F4: 457612 | G4: 206951 | H4: 1901 | I4: 79.20833333 | J4: 712.875
A5: 2020-03-01T06:21:00 | B5: 662662 | F5: 457612 | G5: 205050 | H5: 1776 | I5: 74 | J5: 666
A6: 2020-02-29T06:30:00 | B6: 660886 | F6: 457612 | G6: 203274 | H6: 1690 | I6: 70.41666667 | J6: 633.75
A7: 2020-02-28T06:26:00 | B7: 659196 | F7: 457612 | G7: 201584 | H7: 2028 | I7: 84.5 | J7: 760.5
A8: 2020-02-27T06:47:00 | B8: 657168 | F8: 457612 | G8: 199556 | H8: 1816 | I8: 75.66666667 | J8: 681
A9: 2020-02-26T06:13:00 | B9: 655352 | F9: 457612 | G9: 197740 | H9: 1778 | I9: 74.08333333 | J9: 666.75
A10: 2020-02-25T05:47:00 | B10: 653574 | F10: 457612 | G10: 195962 | H10: 1925 | I10: 80.20833333 | J10: 721.875
A11: 2020-02-24T06:25:00 | B11: 651649 | F11: 457612 | G11: 194037 | H11: 1948 | I11: 81.16666667 | J11: 730.5
A12: 2020-02-23T06:32:00 | B12: 649701 | F12: 457612 | G12: 192089 | H12: 1878 | I12: 78.25 | J12: 704.25
A13: 2020-02-22T06:35:00 | B13: 647823 | F13: 457612 | G13: 190211 | H13: 1903 | I13: 79.29166667 | J13: 713.625
A14: 2020-02-21T06:31:00 | B14: 645920 | F14: 457612 | G14: 188308 | H14: 1861 | I14: 77.54166667 | J14: 697.875
A15: 2020-02-20T05:44:00 | B15: 644059 | F15: 457612 | G15: 186447 | H15: 1796 | I15: 74.83333333 | J15: 673.5
A16: 2020-02-19T06:53:00 | B16: 642263 | F16: 457612 | G16: 184651 | H16: 1894.8 | I16: 78.95 | J16: 710.55
A17: 2020-02-18T06:45:00 | B17: 640368.2 | F17: 457612 | G17: 182756.2 | H17: 1822.2 | I17: 75.925 | J17: 683.325
A18: 2020-02-17T06:54:00 | B18: 638546 | F18: 457612 | G18: 180934 | H18: 1921 | I18: 80.04166667 | J18: 720.375
A19: 2020-02-16T07:37:00 | B19: 636625 | F19: 457612 | G19: 179013 | H19: 2128 | I19: 88.66666667 | J19: 798
A20: 2020-02-15T06:38:00 | B20: 634497 | F20: 457612 | G20: 176885 | H20: 1856 | I20: 77.33333333 | J20: 696
A21: 2020-02-14T06:19:00 | B21: 632641 | F21: 457612 | G21: 175029 | H21: 1917 | I21: 79.875 | J21: 718.875
A22: 2020-02-13T06:11:00 | B22: 630724 | F22: 457612 | G22: 173112 | H22: 1830 | I22: 76.25 | J22: 686.25
A23: 2020-02-12T06:54:00 | B23: 628894 | F23: 457612 | G23: 171282 | H23: 1918 | I23: 79.91666667 | J23: 719.25
A24: 2020-02-11T06:22:00 | B24: 626976 | F24: 457612 | G24: 169364 | H24: 1954 | I24: 81.41666667 | J24: 732.75
A25: 2020-02-10T05:43:00 | B25: 625022 | F25: 457612 | G25: 167410 | H25: 1935 | I25: 80.625 | J25: 725.625
A26: 2020-02-09T05:46:00 | B26: 623087 | F26: 457612 | G26: 165475 | H26: 1727 | I26: 71.95833333 | J26: 647.625
A27: 2020-02-08T06:25:00 | B27: 621360 | F27: 457612 | G27: 163748 | H27: 1889 | I27: 78.70833333 | J27: 708.375
A28: 2020-02-07T06:16:00 | B28: 619471 | F28: 457612 | G28: 161859 | H28: 1861 | I28: 77.54166667 | J28: 697.875
A29: 2020-02-06T06:30:00 | B29: 617610 | F29: 457612 | G29: 159998 | H29: 1753 | I29: 73.04166667 | J29: 657.375
A30: 2020-02-05T06:52:00 | B30: 615857 | F30: 457612 | G30: 158245 | H30: 1917 | I30: 79.875 | J30: 718.875
A31: 2020-02-04T06:03:00 | B31: 613940 | F31: 457612 | G31: 156328 | H31: 1863 | I31: 77.625 | J31: 698.625
A32: 2020-02-03T06:30:00 | B32: 612077 | F32: 457612 | G32: 154465 | H32: -5489551 | I32: -228731.2917 | J32: -2058581.625
A33: 2020-02-02T06:41:00 | B33: 6101628 | F33: 457612 | G33: 5644016 | H33: 5493400 | I33: 228891.6667 | J33: 2060025
A34: 2020-02-01T06:22:00 | B34: 608228 | F34: =VLOOKUP($E$2,A:B,2,) -> 457612 | G34: 150616 | H34: 1974 | I34: 82.25 | J34: 740.25
A35: 2020-01-31T05:28:00 | B35: 606254 | F35: 457612 | G35: 148642 | H35: 1737 | I35: 72.375 | J35: 651.375
A36: 2020-01-30T07:31:00 | B36: 604517 | F36: 457612 | G36: 146905 | H36: 1831 | I36: 76.29166667 | J36: 686.625
A37: 2020-01-29T06:22:00 | B37: 602686 | F37: 457612 | G37: 145074 | H37: 543203 | I37: 22633.45833 | J37: 203701.125
A38: 2020-01-25T06:47:00 | B38: 59483 | F38: 457612 | G38: -398129 | H38: -533329.2 | I38: -22222.05 | J38: -199998.45
A39: 2020-01-24T06:18:00 | B39: 592812.2 | F39: 457612 | G39: 135200.2 | H39: 2026.2 | I39: 84.425 | J39: 759.825
A40: 2020-01-23T06:31:00 | B40: 590786 | F40: 457612 | G40: 133174 | H40: 14941.9 | I40: 622.5791667 | J40: 5603.2125
A41: 2020-01-15T06:41:00 | B41: 575844.1 | F41: 457612 | G41: 118232.1 | H41: 3792.1 | I41: 158.0041667 | J41: 1422.0375
A42: 2020-01-13T06:54:00 | B42: 572052 | F42: 457612 | G42: 114440 | H42: 1964 | I42: 81.83333333 | J42: 736.5
A43: 2020-01-12T06:04:00 | B43: 570088 | F43: 457612 | G43: 112476 | H43: 1906 | I43: 79.41666667 | J43: 714.75
A44: 2020-01-11T07:22:00 | B44: 568182 | F44: 457612 | G44: 110570 | H44: 3939 | I44: 164.125 | J44: 1477.125
A45: 2020-01-09T05:49:00 | B45: 564243 | F45: 457612 | G45: 106631 | H45: 1779.1 | I45: 74.12916667 | J45: 667.1625
A46: 2020-01-08T08:14:00 | B46: 562463.9 | F46: 457612 | G46: 104851.9 | H46: 2069.9 | I46: 86.24583333 | J46: 776.2125
A47: 2020-01-07T06:33:00 | B47: 560394 | F47: 457612 | G47: 102782 | H47: 1991 | I47: 82.95833333 | J47: 746.625
A48: 2020-01-06T06:04:00 | B48: 558403 | F48: 457612 | G48: 100791 | H48: 1930 | I48: 80.41666667 | J48: 723.75
A49: 2020-01-05T06:44:00 | B49: 556473 | F49: 457612 | G49: 98861 | H49: 1902 | I49: 79.25 | J49: 713.25
A50: 2020-01-04T07:23:00 | B50: 554571 | F50: 457612 | G50: 96959 | H50: 1695 | I50: 70.625 | J50: 635.625
A51: 2020-01-03T06:38:00 | B51: 552876 | F51: 457612 | G51: 95264 | H51: 2209 | I51: 92.04166667 | J51: 828.375
A52: 2020-01-02T06:38:00 | B52: 550667 | F52: 457612 | G52: 93055 | H52: 3744 | I52: 156 | J52: 1404
A53: 2019-12-31T06:15:00 | B53: 546923 | F53: 457612 | G53: 89311 | H53: 1995 | I53: 83.125 | J53: 748.125
A54: 2019-12-30T04:52:00 | B54: 544928 | F54: 457612 | G54: 87316 | H54: 1897 | I54: 79.04166667 | J54: 711.375
A55: 2019-12-29T05:50:00 | B55: 543031 | F55: 457612 | G55: 85419 | H55: 1714 | I55: 71.41666667 | J55: 642.75
A56: 2019-12-28T06:51:00 | B56: 541317 | F56: 457612 | G56: 83705 | H56: 1684 | I56: 70.16666667 | J56: 631.5
A57: 2019-12-27T06:46:00 | B57: 539633 | F57: 457612 | G57: 82021 | H57: 4012 | I57: 167.1666667 | J57: 1504.5
A58: 2019-12-25T05:32:00 | B58: 535621 | F58: 457612 | G58: 78009 | H58: 1776 | I58: 74 | J58: 666
A59: 2019-12-24T06:41:00 | B59: 533845 | F59: 457612 | G59: 76233 | H59: 1975 | I59: 82.29166667 | J59: 740.625
A60: 2019-12-23T06:26:00 | B60: 531870 | F60: 457612 | G60: 74258 | H60: 1715 | I60: 71.45833333 | J60: 643.125
A61: 2019-12-22T05:58:00 | B61: 530155 | F61: 457612 | G61: 72543 | H61: 1778 | I61: 74.08333333 | J61: 666.75
A62: 2019-12-21T05:59:00 | B62: 528377 | F62: 457612 | G62: 70765 | H62: 13906 | I62: 579.4166667 | J62: 5214.75
A63: 2019-12-13T07:06:00 | B63: 514471 | F63: 457612 | G63: 56859 | H63: 5365 | I63: 223.5416667 | J63: 2011.875
A64: 2019-12-10T10:01:00 | B64: 509106 | F64: 457612 | G64: 51494 | H64: 7681 | I64: 320.0416667 | J64: 2880.375
A65: 2019-12-06T06:37:00 | B65: 501425 | F65: 457612 | G65: 43813 | H65: 4048 | I65: 168.6666667 | J65: 1518
A66: 2019-12-04T06:14:00 | B66: 497377 | F66: =VLOOKUP($E$2,A:B,2,) -> 457612 | G66: 39765 | H66: 1891 | I66: 78.79166667 | J66: 709.125
A67: 2019-12-03T06:29:00 | B67: 495486 | F67: 457612 | G67: =B67-F67 -> 37874 | H67: =G67-G68 -> 1797 | I67: =H67/24 -> 74.875 | J67: =I67*9 -> 673.875
A68: 2019-12-02T06:01:00 | B68: 493689 | F68: 457612 | G68: 36077 | H68: 1854 | I68: 77.25 | J68: 695.25
A69: 2019-12-01T06:39:00 | B69: 491835 | F69: 457612 | G69: 34223 | H69: 1850.8 | I69: 77.11666667 | J69: 694.05
A70: 2019-11-30T06:22:00 | B70: 489984.2 | F70: 457612 | G70: 32372.2 | H70: 1814.2 | I70: 75.59166667 | J70: 680.325
A71: 2019-11-29T06:48:00 | B71: 488170 | F71: 457612 | G71: 30558 | H71: 1841 | I71: 76.70833333 | J71: 690.375
A72: 2019-11-28T05:53:00 | B72: 486329 | F72: 457612 | G72: 28717 | H72: 1676 | I72: 69.83333333 | J72: 628.5
A73: 2019-11-27T06:58:00 | B73: 484653 | F73: 457612 | G73: 27041 | H73: 1680 | I73: 70 | J73: 630
A74: 2019-11-26T09:10:00 | B74: 482973 | F74: 457612 | G74: 25361 | H74: 1917 | I74: 79.875 | J74: 718.875
A75: 2019-11-25T05:59:00 | B75: 481056 | F75: 457612 | G75: 23444 | H75: 1711 | I75: 71.29166667 | J75: 641.625
A76: 2019-11-24T07:02:00 | B76: 479345 | F76: 457612 | G76: 21733 | H76: 1713 | I76: 71.375 | J76: 642.375
A77: 2019-11-23T06:35:00 | B77: 477632 | F77: 457612 | G77: 20020 | H77: 1680 | I77: 70 | J77: 630
A78: 2019-11-22T06:22:00 | B78: 475952 | F78: 457612 | G78: 18340 | H78: 1817 | I78: 75.70833333 | J78: 681.375
A79: 2019-11-21T07:02:00 | B79: 474135 | F79: 457612 | G79: 16523 | H79: 1903 | I79: 79.29166667 | J79: 713.625
A80: 2019-11-20T06:21:00 | B80: 472232 | F80: 457612 | G80: 14620 | H80: 1727 | I80: 71.95833333 | J80: 647.625
A81: 2019-11-19T05:21:00 | B81: 470505 | F81: 457612 | G81: 12893 | H81: 101663 | I81: 4235.958333 | J81: 38123.625
A82: 2019-11-18T06:06:00 | B82: 368842 | F82: 457612 | G82: -88770 | H82: -98150 | I82: -4089.583333 | J82: -36806.25
A83: 2019-11-17T06:11:00 | B83: 466992 | F83: 457612 | G83: 9380 | H83: 1951 | I83: 81.29166667 | J83: 731.625
A84: 2019-11-16T06:13:00 | B84: 465041 | F84: 457612 | G84: 7429 | H84: 1792 | I84: 74.66666667 | J84: 672
A85: 2019-11-15T06:56:00 | B85: 463249 | F85: 457612 | G85: 5637 | H85: 3816 | I85: 159 | J85: 1431
A86: 2019-11-13T06:38:00 | B86: 459433 | F86: 457612 | G86: 1821 | H86: 1821 | I86: 75.875 | J86: 682.875
A87: 2019-11-12T06:17:00 | B87: 457612 | F87: 457612 | G87: 0 | H87: =G87-#REF! -> 

Sheet SSA4
A1: date_heure | B1: index_SSA4 | E1: date jour 0 | F1: total ssa4 jour0 | G1: différence compteur jour 0 | H1: difference 24h | I1: Débit/h dernière 24h | J1: Debit x9
A2: 2020-01-05T06:46:00 | B2: 298313 | E2: =MIN(A:A) -> 2019-11-13T09:16:00 | F2: =VLOOKUP($E$2,A:B,2,) -> 298313 | G2: =B2-F2 -> 0 | H2: =G2-G3 -> 298313 | I2: =H2/24 -> 12429.70833 | J2: =I2*9 -> 111867.375
A3: 2020-01-04T06:22:00 | B3: 0 | F3: 298313 | G3: =B3-F3 -> -298313 | H3: =G3-G4 -> -298313 | I3: =H3/24 -> -12429.70833 | J3: =I3*9 -> -111867.375
A4: 2020-01-03T07:30:00 | B4: 298313 | F4: 298313 | G4: 0 | H4: 0 | I4: 0 | J4: 0
A5: 2020-01-02T07:33:00 | B5: 298313 | F5: 298313 | G5: 0 | H5: 0 | I5: 0 | J5: 0
A6: 2019-12-31T06:32:00 | B6: 298313 | F6: 298313 | G6: 0 | H6: 0 | I6: 0 | J6: 0
A7: 2019-12-30T06:26:00 | B7: 298313 | F7: 298313 | G7: 0 | H7: 0 | I7: 0 | J7: 0
A8: 2019-12-29T06:01:00 | B8: 298313 | F8: 298313 | G8: 0 | H8: 0 | I8: 0 | J8: 0
A9: 2019-12-28T07:25:00 | B9: 298313 | F9: 298313 | G9: 0 | H9: -0.51 | I9: -0.02125 | J9: -0.19125
A10: 2019-12-27T06:40:00 | B10: 298313.51 | F10: 298313 | G10: 0.51 | H10: 0.51 | I10: 0.02125 | J10: 0.19125
A11: 2019-12-26T06:39:00 | B11: 298313 | F11: 298313 | G11: 0 | H11: 0 | I11: 0 | J11: 0
A12: 2019-12-25T05:22:00 | B12: 298313 | F12: 298313 | G12: 0 | H12: 0 | I12: 0 | J12: 0
A13: 2019-12-23T06:23:00 | B13: 298313 | F13: 298313 | G13: 0 | H13: 0 | I13: 0 | J13: 0
A14: 2019-12-22T05:57:00 | B14: 298313 | F14: 298313 | G14: 0 | H14: 0 | I14: 0 | J14: 0
A15: 2019-12-21T06:01:00 | B15: 298313 | F15: 298313 | G15: 0 | H15: 0 | I15: 0 | J15: 0
A16: 2019-12-20T06:33:00 | B16: 298313 | F16: 298313 | G16: 0 | H16: 0 | I16: 0 | J16: 0
A17: 2019-12-19T06:03:00 | B17: 298313 | F17: 298313 | G17: 0 | H17: 0 | I17: 0 | J17: 0
A18: 2019-12-15T06:34:00 | B18: 298313 | F18: 298313 | G18: 0 | H18: 0 | I18: 0 | J18: 0
A19: 2019-12-13T06:56:00 | B19: 298313 | F19: 298313 | G19: 0 | H19: 0 | I19: 0 | J19: 0
A20: 2019-12-11T06:17:00 | B20: 298313 | F20: 298313 | G20: 0 | H20: 0 | I20: 0 | J20: 0
A21: 2019-12-07T06:38:00 | B21: 298313 | F21: 298313 | G21: 0 | H21: 0 | I21: 0 | J21: 0
A22: 2019-12-04T06:10:00 | B22: 298313 | F22: 298313 | G22: 0 | H22: 0 | I22: 0 | J22: 0
A23: 2019-12-03T06:34:00 | B23: 298313 | F23: 298313 | G23: 0 | H23: 298313 | I23: 12429.70833 | J23: 111867.375
A24: 2019-12-02T07:32:00 | B24: 0 | F24: 298313 | G24: -298313 | H24: 0 | I24: 0 | J24: 0
A25: 2019-12-02T07:32:00 | B25: 0 | F25: 298313 | G25: -298313 | H25: -298313.51 | I25: -12429.72958 | J25: -111867.5663
A26: 2019-12-01T06:41:00 | B26: 298313.51 | F26: 298313 | G26: 0.51 | H26: 0.51 | I26: 0.02125 | J26: 0.19125
A27: 2019-11-30T08:33:00 | B27: 298313 | F27: 298313 | G27: 0 | H27: 0 | I27: 0 | J27: 0
A28: 2019-11-29T07:58:00 | B28: 298313 | F28: 298313 | G28: 0 | H28: 0 | I28: 0 | J28: 0
A29: 2019-11-28T05:54:00 | B29: 298313 | F29: 298313 | G29: 0 | H29: 0 | I29: 0 | J29: 0
A30: 2019-11-27T07:07:00 | B30: 298313 | F30: 298313 | G30: 0 | H30: -0.51 | I30: -0.02125 | J30: -0.19125
A31: 2019-11-24T07:01:00 | B31: 298313.51 | F31: 298313 | G31: 0.51 | H31: 0.51 | I31: 0.02125 | J31: 0.19125
A32: 2019-11-24T06:48:00 | B32: 298313 | F32: 298313 | G32: 0 | H32: 0 | I32: 0 | J32: 0
A33: 2019-11-23T06:34:00 | B33: 298313 | F33: 298313 | G33: 0 | H33: 0 | I33: 0 | J33: 0
A34: 2019-11-22T06:46:00 | B34: 298313 | F34: 298313 | G34: 0 | H34: 0 | I34: 0 | J34: 0
A35: 2019-11-21T06:59:00 | B35: 298313 | F35: 298313 | G35: 0 | H35: 0 | I35: 0 | J35: 0
A36: 2019-11-20T07:35:00 | B36: 298313 | F36: 298313 | G36: 0 | H36: 0 | I36: 0 | J36: 0
A37: 2019-11-19T08:32:00 | B37: 298313 | F37: 298313 | G37: 0 | H37: 0 | I37: 0 | J37: 0
A38: 2019-11-18T06:02:00 | B38: 298313 | F38: 298313 | G38: 0 | H38: -0.51 | I38: -0.02125 | J38: -0.19125
A39: 2019-11-17T05:56:00 | B39: 298313.51 | F39: 298313 | G39: 0.51 | H39: 0.51 | I39: 0.02125 | J39: 0.19125
A40: 2019-11-16T07:22:00 | B40: 298313 | F40: 298313 | G40: 0 | H40: 0 | I40: 0 | J40: 0
A41: 2019-11-13T09:16:00 | B41: 298313 | F41: 298313 | G41: 0 | H41: =G41-#REF! -> 

Sheet PG2
A1: date_heure | B1: index_PG2 | E1: date jour 0 | F1: total pg2 jour0 | G1: différence compteur jour 0 | H1: difference 24h | I1: Débit/h dernière 24h
A2: 2020-03-04T06:48:00 | B2: 575377 | E2: =MIN(A:A) -> 2019-11-12T06:17:00 | F2: =VLOOKUP($E$2,A:B,2,) -> 346106 | G2: =B2-F2 -> 229271 | H2: =G2-G3 -> 2129 | I2: =H2/24 -> 88.70833333 | J2: =I2*9 -> 798.375
A3: 2020-03-03T07:20:00 | B3: 573248 | F3: 346106 | G3: =B3-F3 -> 227142 | H3: =G3-G4 -> 1997 | I3: =H3/24 -> 83.20833333 | J3: =I3*9 -> 748.875
A4: 2020-03-02T07:07:00 | B4: 571251 | F4: 346106 | G4: 225145 | H4: 2099 | I4: 87.45833333 | J4: 787.125
A5: 2020-03-01T06:21:00 | B5: 569152 | F5: 346106 | G5: 223046 | H5: 1671 | I5: 69.625 | J5: 626.625
A6: 2020-02-29T06:30:00 | B6: 567481 | F6: 346106 | G6: 221375 | H6: 1727 | I6: 71.95833333 | J6: 647.625
A7: 2020-02-28T06:26:00 | B7: 565754 | F7: 346106 | G7: 219648 | H7: 2188 | I7: 91.16666667 | J7: 820.5
A8: 2020-02-27T06:47:00 | B8: 563566 | F8: 346106 | G8: 217460 | H8: 2085 | I8: 86.875 | J8: 781.875
A9: 2020-02-26T06:13:00 | B9: 561481 | F9: 346106 | G9: 215375 | H9: 2061 | I9: 85.875 | J9: 772.875
A10: 2020-02-25T05:47:00 | B10: 559420 | F10: 346106 | G10: 213314 | H10: 2021 | I10: 84.20833333 | J10: 757.875
A11: 2020-02-24T06:25:00 | B11: 557399 | F11: 346106 | G11: 211293 | H11: 2052 | I11: 85.5 | J11: 769.5
A12: 2020-02-23T06:32:00 | B12: 555347 | F12: 346106 | G12: 209241 | H12: 2076 | I12: 86.5 | J12: 778.5
A13: 2020-02-22T06:35:00 | B13: 553271 | F13: 346106 | G13: 207165 | H13: 2173 | I13: 90.54166667 | J13: 814.875
A14: 2020-02-21T06:31:00 | B14: 551098 | F14: 346106 | G14: 204992 | H14: 1934 | I14: 80.58333333 | J14: 725.25
A15: 2020-02-20T05:44:00 | B15: 549164 | F15: 346106 | G15: 203058 | H15: 2039 | I15: 84.95833333 | J15: 764.625
A16: 2020-02-19T06:53:00 | B16: 547125 | F16: 346106 | G16: 201019 | H16: 2214.9 | I16: 92.2875 | J16: 830.5875
A17: 2020-02-18T06:45:00 | B17: 544910.1 | F17: 346106 | G17: 198804.1 | H17: 2080.1 | I17: 86.67083333 | J17: 780.0375
A18: 2020-02-17T06:54:00 | B18: 542830 | F18: 346106 | G18: 196724 | H18: 1457 | I18: 60.70833333 | J18: 546.375
A19: 2020-02-16T07:37:00 | B19: 541373 | F19: 346106 | G19: 195267 | H19: 2039 | I19: 84.95833333 | J19: 764.625
A20: 2020-02-15T06:38:00 | B20: 539334 | F20: 346106 | G20: 193228 | H20: 2094 | I20: 87.25 | J20: 785.25
A21: 2020-02-14T06:19:00 | B21: 537240 | F21: 346106 | G21: 191134 | H21: 1767 | I21: 73.625 | J21: 662.625
A22: 2020-02-13T06:11:00 | B22: 535473 | F22: 346106 | G22: 189367 | H22: 2148 | I22: 89.5 | J22: 805.5
A23: 2020-02-12T06:54:00 | B23: 533325 | F23: 346106 | G23: 187219 | H23: 2176 | I23: 90.66666667 | J23: 816
A24: 2020-02-11T06:22:00 | B24: 531149 | F24: 346106 | G24: 185043 | H24: 1683 | I24: 70.125 | J24: 631.125
A25: 2020-02-10T05:43:00 | B25: 529466 | F25: 346106 | G25: 183360 | H25: 1384 | I25: 57.66666667 | J25: 519
A26: 2020-02-09T05:46:00 | B26: 528082 | F26: 346106 | G26: 181976 | H26: 1958 | I26: 81.58333333 | J26: 734.25
A27: 2020-02-08T06:25:00 | B27: 526124 | F27: 346106 | G27: 180018 | H27: 2093 | I27: 87.20833333 | J27: 784.875
A28: 2020-02-07T06:16:00 | B28: 524031 | F28: 346106 | G28: 177925 | H28: 2070 | I28: 86.25 | J28: 776.25
A29: 2020-02-06T06:30:00 | B29: 521961 | F29: 346106 | G29: 175855 | H29: 2004 | I29: 83.5 | J29: 751.5
A30: 2020-02-05T06:52:00 | B30: 519957 | F30: 346106 | G30: 173851 | H30: 2266 | I30: 94.41666667 | J30: 849.75
A31: 2020-02-04T06:03:00 | B31: 517691 | F31: 346106 | G31: 171585 | H31: 1967 | I31: 81.95833333 | J31: 737.625
A32: 2020-02-03T06:30:00 | B32: 515724 | F32: 346106 | G32: 169618 | H32: -4622641 | I32: -192610.0417 | J32: -1733490.375
A33: 2020-02-02T06:41:00 | B33: 5138365 | F33: 346106 | G33: 4792259 | H33: 4626500 | I33: 192770.8333 | J33: 1734937.5
A34: 2020-02-01T06:22:00 | B34: 511865 | F34: =VLOOKUP($E$2,A:B,2,) -> 346106 | G34: 165759 | H34: 2046 | I34: 85.25 | J34: 767.25
A35: 2020-01-31T05:28:00 | B35: 509819 | F35: 346106 | G35: 163713 | H35: 1817 | I35: 75.70833333 | J35: 681.375
A36: 2020-01-30T07:31:00 | B36: 508002 | F36: 346106 | G36: 161896 | H36: 2309 | I36: 96.20833333 | J36: 865.875
A37: 2020-01-29T06:22:00 | B37: 505693 | F37: 346106 | G37: 159587 | H37: 7820 | I37: 325.8333333 | J37: 2932.5
A38: 2020-01-25T06:47:00 | B38: 497873 | F38: 346106 | G38: 151767 | H38: 2274.2 | I38: 94.75833333 | J38: 852.825
A39: 2020-01-24T06:18:00 | B39: 495598.8 | F39: 346106 | G39: 149492.8 | H39: 2283.8 | I39: 95.15833333 | J39: 856.425
A40: 2020-01-23T06:31:00 | B40: 493315 | F40: 346106 | G40: 147209 | H40: 16892.7 | I40: 703.8625 | J40: 6334.7625
A41: 2020-01-15T06:41:00 | B41: 476422.3 | F41: 346106 | G41: 130316.3 | H41: 3457.3 | I41: 144.0541667 | J41: 1296.4875
A42: 2020-01-13T06:54:00 | B42: 472965 | F42: 346106 | G42: 126859 | H42: 2031 | I42: 84.625 | J42: 761.625
A43: 2020-01-12T06:04:00 | B43: 470934 | F43: 346106 | G43: 124828 | H43: 2112 | I43: 88 | J43: 792
A44: 2020-01-11T07:22:00 | B44: 468822 | F44: 346106 | G44: 122716 | H44: 3942 | I44: 164.25 | J44: 1478.25
A45: 2020-01-09T05:49:00 | B45: 464880 | F45: 346106 | G45: 118774 | H45: 1869.3 | I45: 77.8875 | J45: 700.9875
A46: 2020-01-08T08:14:00 | B46: 463010.7 | F46: 346106 | G46: 116904.7 | H46: 2231.7 | I46: 92.9875 | J46: 836.8875
A47: 2020-01-07T06:33:00 | B47: 460779 | F47: 346106 | G47: 114673 | H47: 2148 | I47: 89.5 | J47: 805.5
A48: 2020-01-06T06:04:00 | B48: 458631 | F48: 346106 | G48: 112525 | H48: 2088 | I48: 87 | J48: 783
A49: 2020-01-05T06:44:00 | B49: 456543 | F49: 346106 | G49: 110437 | H49: 2126 | I49: 88.58333333 | J49: 797.25
A50: 2020-01-04T07:23:00 | B50: 454417 | F50: 346106 | G50: 108311 | H50: 1967 | I50: 81.95833333 | J50: 737.625
A51: 2020-01-03T06:38:00 | B51: 452450 | F51: 346106 | G51: 106344 | H51: 2208 | I51: 92 | J51: 828
A52: 2020-01-02T06:38:00 | B52: 450242 | F52: 346106 | G52: 104136 | H52: 4254 | I52: 177.25 | J52: 1595.25
A53: 2019-12-31T06:15:00 | B53: 445988 | F53: 346106 | G53: 99882 | H53: 2172 | I53: 90.5 | J53: 814.5
A54: 2019-12-30T04:52:00 | B54: 443816 | F54: 346106 | G54: 97710 | H54: 2098 | I54: 87.41666667 | J54: 786.75
A55: 2019-12-29T05:50:00 | B55: 441718 | F55: 346106 | G55: 95612 | H55: 2055 | I55: 85.625 | J55: 770.625
A56: 2019-12-28T06:51:00 | B56: 439663 | F56: 346106 | G56: 93557 | H56: 1968 | I56: 82 | J56: 738
A57: 2019-12-27T06:46:00 | B57: 437695 | F57: 346106 | G57: 91589 | H57: 4463 | I57: 185.9583333 | J57: 1673.625
A58: 2019-12-25T05:32:00 | B58: 433232 | F58: 346106 | G58: 87126 | H58: 390103 | I58: 16254.29167 | J58: 146288.625
A59: 2019-12-24T06:41:00 | B59: 43129 | F59: 346106 | G59: -302977 | H59: -386095 | I59: -16087.29167 | J59: -144785.625
A60: 2019-12-23T06:26:00 | B60: 429224 | F60: 346106 | G60: 83118 | H60: 1682 | I60: 70.08333333 | J60: 630.75
A61: 2019-12-22T05:58:00 | B61: 427542 | F61: 346106 | G61: 81436 | H61: 1715 | I61: 71.45833333 | J61: 643.125
A62: 2019-12-21T05:59:00 | B62: 425827 | F62: 346106 | G62: 79721 | H62: 15530 | I62: 647.0833333 | J62: 5823.75
A63: 2019-12-13T07:06:00 | B63: 410297 | F63: 346106 | G63: 64191 | H63: 2577 | I63: 107.375 | J63: 966.375
A64: 2019-12-10T10:01:00 | B64: 407720 | F64: 346106 | G64: 61614 | H64: 11490 | I64: 478.75 | J64: 4308.75
A65: 2019-12-06T06:37:00 | B65: 396230 | F65: 346106 | G65: 50124 | H65: 4523 | I65: 188.4583333 | J65: 1696.125
A66: 2019-12-04T06:14:00 | B66: 391707 | F66: =VLOOKUP($E$2,A:B,2,) -> 346106 | G66: 45601 | H66: 2159 | I66: 89.95833333 | J66: 809.625
A67: 2019-12-03T06:29:00 | B67: 389548 | F67: 346106 | G67: =B67-F67 -> 43442 | H67: =G67-G68 -> 2062 | I67: =H67/24 -> 85.91666667 | J67: =I67*9 -> 773.25
A68: 2019-12-02T06:01:00 | B68: 387486 | F68: 346106 | G68: 41380 | H68: 2061 | I68: 85.875 | J68: 772.875
A69: 2019-12-01T06:39:00 | B69: 385425 | F69: 346106 | G69: 39319 | H69: 2127 | I69: 88.625 | J69: 797.625
A70: 2019-11-30T06:22:00 | B70: 383298 | F70: 346106 | G70: 37192 | H70: 2087 | I70: 86.95833333 | J70: 782.625
A71: 2019-11-29T06:48:00 | B71: 381211 | F71: 346106 | G71: 35105 | H71: 2127 | I71: 88.625 | J71: 797.625
A72: 2019-11-28T05:53:00 | B72: 379084 | F72: 346106 | G72: 32978 | H72: 1708 | I72: 71.16666667 | J72: 640.5
A73: 2019-11-27T06:58:00 | B73: 377376 | F73: 346106 | G73: 31270 | H73: 1755 | I73: 73.125 | J73: 658.125
A74: 2019-11-26T09:10:00 | B74: 375621 | F74: 346106 | G74: 29515 | H74: 2262 | I74: 94.25 | J74: 848.25
A75: 2019-11-25T05:59:00 | B75: 373359 | F75: 346106 | G75: 27253 | H75: 2036 | I75: 84.83333333 | J75: 763.5
A76: 2019-11-24T07:02:00 | B76: 371323 | F76: 346106 | G76: 25217 | H76: 2057 | I76: 85.70833333 | J76: 771.375
A77: 2019-11-23T06:35:00 | B77: 369266 | F77: 346106 | G77: 23160 | H77: 2019 | I77: 84.125 | J77: 757.125
A78: 2019-11-22T06:22:00 | B78: 367247 | F78: 346106 | G78: 21141 | H78: 2019 | I78: 84.125 | J78: 757.125
A79: 2019-11-21T07:02:00 | B79: 365228 | F79: 346106 | G79: 19122 | H79: 2215 | I79: 92.29166667 | J79: 830.625
A80: 2019-11-20T06:21:00 | B80: 363013 | F80: 346106 | G80: 16907 | H80: 2024 | I80: 84.33333333 | J80: 759
A81: 2019-11-19T05:21:00 | B81: 360989 | F81: 346106 | G81: 14883 | H81: 2024 | I81: 84.33333333 | J81: 759
A82: 2019-11-18T06:06:00 | B82: 358965 | F82: 346106 | G82: 12859 | H82: 2272 | I82: 94.66666667 | J82: 852
A83: 2019-11-17T06:11:00 | B83: 356693 | F83: 346106 | G83: 10587 | H83: 2231 | I83: 92.95833333 | J83: 836.625
A84: 2019-11-16T06:13:00 | B84: 354462 | F84: 346106 | G84: 8356 | H84: 2098 | I84: 87.41666667 | J84: 786.75
A85: 2019-11-15T06:56:00 | B85: 352364 | F85: 346106 | G85: 6258 | H85: 4104 | I85: 171 | J85: 1539
A86: 2019-11-13T06:38:00 | B86: 348260 | F86: 346106 | G86: 2154 | H86: 2154 | I86: 89.75 | J86: 807.75
A87: 2019-11-12T06:17:00 | B87: 346106 | F87: 346106 | G87: 0 | H87: =G87-#REF! -> 

Sheet PR
A1: date_heure | B1: index_PR | E1: date jour 0 | F1: total pr jour0 | G1: différence compteur jour 0 | H1: difference 24h | I1: Débit/h dernière 24h | J1: Debit x9
A2: 2020-03-04T06:53:00 | B2: 572263 | E2: =MIN(A:A) -> 2019-11-13T09:16:00 | F2: =VLOOKUP($E$2,A:B,2,) -> 500601 | G2: =B2-F2 -> 71662 | H2: =G2-G3 -> 627 | I2: =H2/24 -> 26.125 | J2: =I2*9 -> 235.125
A3: 2020-03-03T07:22:00 | B3: 571636 | F3: 500601 | G3: =B3-F3 -> 71035 | H3: =G3-G4 -> 686 | I3: =H3/24 -> 28.58333333 | J3: =I3*9 -> 257.25
A4: 2020-03-02T07:54:00 | B4: 570950 | F4: 500601 | G4: 70349 | H4: 720 | I4: 30 | J4: 270
A5: 2020-03-01T06:25:00 | B5: 570230 | F5: 500601 | G5: 69629 | H5: 698 | I5: 29.08333333 | J5: 261.75
A6: 2020-02-29T06:57:00 | B6: 569532 | F6: 500601 | G6: 68931 | H6: 670 | I6: 27.91666667 | J6: 251.25
A7: 2020-02-28T07:26:00 | B7: 568862 | F7: 500601 | G7: 68261 | H7: 686 | I7: 28.58333333 | J7: 257.25
A8: 2020-02-27T07:00:00 | B8: 568176 | F8: 500601 | G8: 67575 | H8: -5106851 | I8: -212785.4583 | J8: -1915069.125
A9: 2020-02-26T06:07:00 | B9: 5675027 | F9: 500601 | G9: 5174426 | H9: 5108217 | I9: 212842.375 | J9: 1915581.375
A10: 2020-02-25T06:46:00 | B10: 566810 | F10: 500601 | G10: 66209 | H10: 667 | I10: 27.79166667 | J10: 250.125
A11: 2020-02-24T06:30:00 | B11: 566143 | F11: 500601 | G11: 65542 | H11: 631 | I11: 26.29166667 | J11: 236.625
A12: 2020-02-23T06:06:00 | B12: 565512 | F12: 500601 | G12: 64911 | H12: 607 | I12: 25.29166667 | J12: 227.625
A13: 2020-02-22T07:28:00 | B13: 564905 | F13: 500601 | G13: 64304 | H13: 597 | I13: 24.875 | J13: 223.875
A14: 2020-02-21T06:29:00 | B14: 564308 | F14: 500601 | G14: 63707 | H14: 642 | I14: 26.75 | J14: 240.75
A15: 2020-02-20T05:38:00 | B15: 563666 | F15: 500601 | G15: 63065 | H15: 618.8 | I15: 25.78333333 | J15: 232.05
A16: 2020-02-19T07:04:00 | B16: 563047.2 | F16: 500601 | G16: 62446.2 | H16: 627.2 | I16: 26.13333333 | J16: 235.2
A17: 2020-02-18T06:45:00 | B17: 562420 | F17: 500601 | G17: 61819 | H17: 682 | I17: 28.41666667 | J17: 255.75
A18: 2020-02-17T06:57:00 | B18: 561738 | F18: 500601 | G18: 61137 | H18: 708 | I18: 29.5 | J18: 265.5
A19: 2020-02-16T07:37:00 | B19: 561030 | F19: 500601 | G19: 60429 | H19: 774 | I19: 32.25 | J19: 290.25
A20: 2020-02-15T06:11:00 | B20: 560256 | F20: 500601 | G20: 59655 | H20: 658 | I20: 27.41666667 | J20: 246.75
A21: 2020-02-14T06:34:00 | B21: 559598 | F21: 500601 | G21: 58997 | H21: 672 | I21: 28 | J21: 252
A22: 2020-02-13T07:31:00 | B22: 558926 | F22: 500601 | G22: 58325 | H22: 642 | I22: 26.75 | J22: 240.75
A23: 2020-02-12T06:19:00 | B23: 558284 | F23: 500601 | G23: 57683 | H23: 618 | I23: 25.75 | J23: 231.75
A24: 2020-02-11T07:35:00 | B24: 557666 | F24: 500601 | G24: 57065 | H24: 754 | I24: 31.41666667 | J24: 282.75
A25: 2020-02-10T05:43:00 | B25: 556912 | F25: 500601 | G25: 56311 | H25: 673 | I25: 28.04166667 | J25: 252.375
A26: 2020-02-09T05:50:00 | B26: 556239 | F26: 500601 | G26: 55638 | H26: 612 | I26: 25.5 | J26: 229.5
A27: 2020-02-08T07:23:00 | B27: 555627 | F27: 500601 | G27: 55026 | H27: 639 | I27: 26.625 | J27: 239.625
A28: 2020-02-07T06:09:00 | B28: 554988 | F28: 500601 | G28: 54387 | H28: 1151 | I28: 47.95833333 | J28: 431.625
A29: 2020-02-05T07:57:00 | B29: 553837 | F29: 500601 | G29: 53236 | H29: 713 | I29: 29.70833333 | J29: 267.375
A30: 2020-02-04T05:54:00 | B30: 553124 | F30: 500601 | G30: 52523 | H30: 717 | I30: 29.875 | J30: 268.875
A31: 2020-02-03T06:26:00 | B31: 552407 | F31: 500601 | G31: 51806 | H31: 715 | I31: 29.79166667 | J31: 268.125
A32: 2020-02-02T06:38:00 | B32: 551692 | F32: 500601 | G32: 51091 | H32: 718 | I32: 29.91666667 | J32: 269.25
A33: 2020-02-01T06:03:00 | B33: 550974 | F33: 500601 | G33: 50373 | H33: 701 | I33: 29.20833333 | J33: 262.875
A34: 2020-01-31T06:42:00 | B34: 550273 | F34: =VLOOKUP($E$2,A:B,2,) -> 500601 | G34: 49672 | H34: 641 | I34: 26.70833333 | J34: 240.375
A35: 2020-01-30T07:07:00 | B35: 549632 | F35: 500601 | G35: 49031 | H35: 621 | I35: 25.875 | J35: 232.875
A36: 2020-01-29T06:13:00 | B36: 549011 | F36: 500601 | G36: 48410 | H36: 603.5 | I36: 25.14583333 | J36: 226.3125
A37: 2020-01-28T06:41:00 | B37: 548407.5 | F37: 500601 | G37: 47806.5 | H37: 1669.5 | I37: 69.5625 | J37: 626.0625
A38: 2020-01-25T07:56:00 | B38: 546738 | F38: 500601 | G38: 46137 | H38: 1324 | I38: 55.16666667 | J38: 496.5
A39: 2020-01-22T05:44:00 | B39: 545414 | F39: 500601 | G39: 44813 | H39: 428 | I39: 17.83333333 | J39: 160.5
A40: 2020-01-21T05:41:00 | B40: 544986 | F40: 500601 | G40: 44385 | H40: 941 | I40: 39.20833333 | J40: 352.875
A41: 2020-01-19T06:29:00 | B41: 544045 | F41: 500601 | G41: 43444 | H41: 1235 | I41: 51.45833333 | J41: 463.125
A42: 2020-01-17T06:54:00 | B42: 542810 | F42: 500601 | G42: 42209 | H42: 654 | I42: 27.25 | J42: 245.25
A43: 2020-01-16T06:23:00 | B43: 542156 | F43: 500601 | G43: 41555 | H43: 1424 | I43: 59.33333333 | J43: 534
A44: 2020-01-14T06:38:00 | B44: 540732 | F44: 500601 | G44: 40131 | H44: 668 | I44: 27.83333333 | J44: 250.5
A45: 2020-01-13T07:51:00 | B45: 540064 | F45: 500601 | G45: 39463 | H45: 652 | I45: 27.16666667 | J45: 244.5
A46: 2020-01-12T08:49:00 | B46: 539412 | F46: 500601 | G46: 38811 | H46: 1967 | I46: 81.95833333 | J46: 737.625
A47: 2020-01-09T05:46:00 | B47: 537445 | F47: 500601 | G47: 36844 | H47: 596 | I47: 24.83333333 | J47: 223.5
A48: 2020-01-08T06:45:00 | B48: 536849 | F48: 500601 | G48: 36248 | H48: 613 | I48: 25.54166667 | J48: 229.875
A49: 2020-01-07T06:41:00 | B49: 536236 | F49: 500601 | G49: 35635 | H49: 490 | I49: 20.41666667 | J49: 183.75
A50: 2020-01-06T07:22:00 | B50: 535746 | F50: 500601 | G50: 35145 | H50: 525 | I50: 21.875 | J50: 196.875
A51: 2020-01-05T06:46:00 | B51: 535221 | F51: 500601 | G51: 34620 | H51: 607.8 | I51: 25.325 | J51: 227.925
A52: 2020-01-04T06:22:00 | B52: 534613.2 | F52: 500601 | G52: 34012.2 | H52: 606.2 | I52: 25.25833333 | J52: 227.325
A53: 2020-01-03T07:30:00 | B53: 534007 | F53: 500601 | G53: 33406 | H53: 587 | I53: 24.45833333 | J53: 220.125
A54: 2020-01-02T07:33:00 | B54: 533420 | F54: 500601 | G54: 32819 | H54: 1093 | I54: 45.54166667 | J54: 409.875
A55: 2019-12-31T06:32:00 | B55: 532327 | F55: 500601 | G55: 31726 | H55: 482 | I55: 20.08333333 | J55: 180.75
A56: 2019-12-30T06:26:00 | B56: 531845 | F56: 500601 | G56: 31244 | H56: 587 | I56: 24.45833333 | J56: 220.125
A57: 2019-12-29T06:01:00 | B57: 531258 | F57: 500601 | G57: 30657 | H57: 662 | I57: 27.58333333 | J57: 248.25
A58: 2019-12-28T07:25:00 | B58: 530596 | F58: 500601 | G58: 29995 | H58: 731.2 | I58: 30.46666667 | J58: 274.2
A59: 2019-12-27T06:40:00 | B59: 529864.8 | F59: 500601 | G59: 29263.8 | H59: 643.8 | I59: 26.825 | J59: 241.425
A60: 2019-12-26T06:39:00 | B60: 529221 | F60: 500601 | G60: 28620 | H60: 728 | I60: 30.33333333 | J60: 273
A61: 2019-12-25T05:22:00 | B61: 528493 | F61: 500601 | G61: 27892 | H61: 1283 | I61: 53.45833333 | J61: 481.125
A62: 2019-12-23T06:23:00 | B62: 527210 | F62: 500601 | G62: 26609 | H62: 768 | I62: 32 | J62: 288
A63: 2019-12-22T05:57:00 | B63: 526442 | F63: 500601 | G63: 25841 | H63: -4730717 | I63: -197113.2083 | J63: -1774018.875
A64: 2019-12-21T06:01:00 | B64: 5257159 | F64: 500601 | G64: 4756558 | H64: 4732208 | I64: 197175.3333 | J64: 1774578
A65: 2019-12-20T06:33:00 | B65: 524951 | F65: 500601 | G65: 24350 | H65: 756 | I65: 31.5 | J65: 283.5
A66: 2019-12-19T06:03:00 | B66: 524195 | F66: =VLOOKUP($E$2,A:B,2,) -> 500601 | G66: 23594 | H66: 2723 | I66: 113.4583333 | J66: 1021.125
A67: 2019-12-15T06:34:00 | B67: 521472 | F67: 500601 | G67: =B67-F67 -> 20871 | H67: =G67-G68 -> 1489 | I67: =H67/24 -> 62.04166667 | J67: =I67*9 -> 558.375
A68: 2019-12-13T06:56:00 | B68: 519983 | F68: 500601 | G68: 19382 | H68: 1299 | I68: 54.125 | J68: 487.125
A69: 2019-12-11T06:17:00 | B69: 518684 | F69: 500601 | G69: 18083 | H69: 2575 | I69: 107.2916667 | J69: 965.625
A70: 2019-12-07T06:38:00 | B70: 516109 | F70: 500601 | G70: 15508 | H70: 1490 | I70: 62.08333333 | J70: 558.75
A71: 2019-12-04T06:10:00 | B71: 514619 | F71: 500601 | G71: 14018 | H71: 506 | I71: 21.08333333 | J71: 189.75
A72: 2019-12-03T06:34:00 | B72: 514113 | F72: 500601 | G72: 13512 | H72: 521 | I72: 21.70833333 | J72: 195.375
A73: 2019-12-02T07:32:00 | B73: 513592 | F73: 500601 | G73: 12991 | H73: 0 | I73: 0 | J73: 0
A74: 2019-12-02T07:32:00 | B74: 513592 | F74: 500601 | G74: 12991 | H74: 641 | I74: 26.70833333 | J74: 240.375
A75: 2019-12-01T06:41:00 | B75: 512951 | F75: 500601 | G75: 12350 | H75: 631 | I75: 26.29166667 | J75: 236.625
A76: 2019-11-30T08:33:00 | B76: 512320 | F76: 500601 | G76: 11719 | H76: 770 | I76: 32.08333333 | J76: 288.75
A77: 2019-11-29T07:58:00 | B77: 511550 | F77: 500601 | G77: 10949 | H77: 863 | I77: 35.95833333 | J77: 323.625
A78: 2019-11-28T05:54:00 | B78: 510687 | F78: 500601 | G78: 10086 | H78: 789 | I78: 32.875 | J78: 295.875
A79: 2019-11-27T07:07:00 | B79: 509898 | F79: 500601 | G79: 9297 | H79: 1580 | I79: 65.83333333 | J79: 592.5
A80: 2019-11-25T06:08:00 | B80: 508318 | F80: 500601 | G80: 7717 | H80: -772.3 | I80: -32.17916667 | J80: -289.6125
A81: 2019-11-24T07:01:00 | B81: 509090.3 | F81: 500601 | G81: 8489.3 | H81: 4436.3 | I81: 184.8458333 | J81: 1663.6125
A82: 2019-11-24T06:48:00 | B82: 504654 | F82: 500601 | G82: 4053 | H82: -2250 | I82: -93.75 | J82: -843.75
A83: 2019-11-23T06:34:00 | B83: 506904 | F83: 500601 | G83: 6303 | H83: 683 | I83: 28.45833333 | J83: 256.125
A84: 2019-11-22T06:46:00 | B84: 506221 | F84: 500601 | G84: 5620 | H84: 582 | I84: 24.25 | J84: 218.25
A85: 2019-11-21T06:59:00 | B85: 505639 | F85: 500601 | G85: 5038 | H85: 634 | I85: 26.41666667 | J85: 237.75
A86: 2019-11-20T07:35:00 | B86: 505005 | F86: 500601 | G86: 4404 | H86: 575 | I86: 23.95833333 | J86: 215.625
A87: 2019-11-19T08:32:00 | B87: 504430 | F87: 500601 | G87: 3829 | H87: 663 | I87: 27.625 | J87: 248.625
A88: 2019-11-18T06:02:00 | B88: 503767 | F88: 500601 | G88: 3166 | H88: 604.9 | I88: 25.20416667 | J88: 226.8375
A89: 2019-11-17T05:56:00 | B89: 503162.1 | F89: 500601 | G89: 2561.1 | H89: 580.1 | I89: 24.17083333 | J89: 217.5375
A90: 2019-11-16T07:22:00 | B90: 502582 | F90: 500601 | G90: 1981 | H90: 639 | I90: 26.625 | J90: 239.625
A91: 2019-11-15T06:58:00 | B91: 501943 | F91: 500601 | G91: 1342 | H91: 617 | I91: 25.70833333 | J91: 231.375
A92: 2019-11-14T11:11:00 | B92: 501326 | F92: 500601 | G92: 725 | H92: 725 | I92: 30.20833333 | J92: 271.875
A93: 2019-11-13T09:16:00 | B93: 500601 | F93: 500601 | G93: 0 | H93: =G93-#REF! -> 

Sheet PS
A1: date_heure | B1: index_PS | E1: date jour 0 | F1: total PS jour0 | G1: différence compteur jour 0 | H1: difference 24h | I1: Débit/h dernière 24h | J1: Debit x9
A2: 2020-03-04T06:53:00 | B2: 604145 | E2: =MIN(A:A) -> 2019-11-13T09:16:00 | F2: =VLOOKUP($E$2,A:B,2,) -> 542822 | G2: =B2-F2 -> 61323 | H2: =G2-G3 -> 605 | I2: =H2/24 -> 25.20833333 | J2: =I2*9 -> 226.875
A3: 2020-03-03T07:22:00 | B3: 603540 | F3: 542822 | G3: =B3-F3 -> 60718 | H3: =G3-G4 -> 629 | I3: =H3/24 -> 26.20833333 | J3: =I3*9 -> 235.875
A4: 2020-03-02T07:54:00 | B4: 602911 | F4: 542822 | G4: 60089 | H4: 666 | I4: 27.75 | J4: 249.75
A5: 2020-03-01T06:25:00 | B5: 602245 | F5: 542822 | G5: 59423 | H5: 596 | I5: 24.83333333 | J5: 223.5
A6: 2020-02-29T06:57:00 | B6: 601649 | F6: 542822 | G6: 58827 | H6: 591 | I6: 24.625 | J6: 221.625
A7: 2020-02-28T07:26:00 | B7: 601058 | F7: 542822 | G7: 58236 | H7: 653 | I7: 27.20833333 | J7: 244.875
A8: 2020-02-27T07:00:00 | B8: 600405 | F8: 542822 | G8: 57583 | H8: 569 | I8: 23.70833333 | J8: 213.375
A9: 2020-02-26T06:07:00 | B9: 599836 | F9: 542822 | G9: 57014 | H9: 581 | I9: 24.20833333 | J9: 217.875
A10: 2020-02-25T06:46:00 | B10: 599255 | F10: 542822 | G10: 56433 | H10: 598 | I10: 24.91666667 | J10: 224.25
A11: 2020-02-24T06:30:00 | B11: 598657 | F11: 542822 | G11: 55835 | H11: 551 | I11: 22.95833333 | J11: 206.625
A12: 2020-02-23T06:06:00 | B12: 598106 | F12: 542822 | G12: 55284 | H12: 540 | I12: 22.5 | J12: 202.5
A13: 2020-02-22T07:28:00 | B13: 597566 | F13: 542822 | G13: 54744 | H13: 559 | I13: 23.29166667 | J13: 209.625
A14: 2020-02-21T06:29:00 | B14: 597007 | F14: 542822 | G14: 54185 | H14: 567 | I14: 23.625 | J14: 212.625
A15: 2020-02-20T05:38:00 | B15: 596440 | F15: 542822 | G15: 53618 | H15: 545.7 | I15: 22.7375 | J15: 204.6375
A16: 2020-02-19T07:04:00 | B16: 595894.3 | F16: 542822 | G16: 53072.3 | H16: 550.3 | I16: 22.92916667 | J16: 206.3625
A17: 2020-02-18T06:45:00 | B17: 595344 | F17: 542822 | G17: 52522 | H17: 568 | I17: 23.66666667 | J17: 213
A18: 2020-02-17T06:57:00 | B18: 594776 | F18: 542822 | G18: 51954 | H18: 586 | I18: 24.41666667 | J18: 219.75
A19: 2020-02-16T07:37:00 | B19: 594190 | F19: 542822 | G19: 51368 | H19: 627 | I19: 26.125 | J19: 235.125
A20: 2020-02-15T06:11:00 | B20: 593563 | F20: 542822 | G20: 50741 | H20: 553 | I20: 23.04166667 | J20: 207.375
A21: 2020-02-14T06:34:00 | B21: 593010 | F21: 542822 | G21: 50188 | H21: 592 | I21: 24.66666667 | J21: 222
A22: 2020-02-13T07:31:00 | B22: 592418 | F22: 542822 | G22: 49596 | H22: 587 | I22: 24.45833333 | J22: 220.125
A23: 2020-02-12T06:19:00 | B23: 591831 | F23: 542822 | G23: 49009 | H23: 565 | I23: 23.54166667 | J23: 211.875
A24: 2020-02-11T07:35:00 | B24: 591266 | F24: 542822 | G24: 48444 | H24: 620 | I24: 25.83333333 | J24: 232.5
A25: 2020-02-10T05:43:00 | B25: 590646 | F25: 542822 | G25: 47824 | H25: 583 | I25: 24.29166667 | J25: 218.625
A26: 2020-02-09T05:50:00 | B26: 590063 | F26: 542822 | G26: 47241 | H26: 535 | I26: 22.29166667 | J26: 200.625
A27: 2020-02-08T07:23:00 | B27: 589528 | F27: 542822 | G27: 46706 | H27: 611 | I27: 25.45833333 | J27: 229.125
A28: 2020-02-07T06:09:00 | B28: 588917 | F28: 542822 | G28: 46095 | H28: 1037 | I28: 43.20833333 | J28: 388.875
A29: 2020-02-05T07:57:00 | B29: 587880 | F29: 542822 | G29: 45058 | H29: 611 | I29: 25.45833333 | J29: 229.125
A30: 2020-02-04T05:54:00 | B30: 587269 | F30: 542822 | G30: 44447 | H30: -5079489 | I30: -211645.375 | J30: -1904808.375
A31: 2020-02-03T06:26:00 | B31: 5666758 | F31: 542822 | G31: 5123936 | H31: 5080681 | I31: 211695.0417 | J31: 1905255.375
A32: 2020-02-02T06:38:00 | B32: 586077 | F32: 542822 | G32: 43255 | H32: 611 | I32: 25.45833333 | J32: 229.125
A33: 2020-02-01T06:03:00 | B33: 585466 | F33: 542822 | G33: 42644 | H33: 622 | I33: 25.91666667 | J33: 233.25
A34: 2020-01-31T06:42:00 | B34: 584844 | F34: =VLOOKUP($E$2,A:B,2,) -> 542822 | G34: 42022 | H34: 564 | I34: 23.5 | J34: 211.5
A35: 2020-01-30T07:07:00 | B35: 584280 | F35: 542822 | G35: 41458 | H35: 590 | I35: 24.58333333 | J35: 221.25
A36: 2020-01-29T06:13:00 | B36: 583690 | F36: 542822 | G36: 40868 | H36: 573.4 | I36: 23.89166667 | J36: 215.025
A37: 2020-01-28T06:41:00 | B37: 583116.6 | F37: 542822 | G37: 40294.6 | H37: 1672.6 | I37: 69.69166667 | J37: 627.225
A38: 2020-01-25T07:56:00 | B38: 581444 | F38: 542822 | G38: 38622 | H38: 1579 | I38: 65.79166667 | J38: 592.125
A39: 2020-01-22T05:44:00 | B39: 579865 | F39: 542822 | G39: 37043 | H39: 490 | I39: 20.41666667 | J39: 183.75
A40: 2020-01-21T05:41:00 | B40: 579375 | F40: 542822 | G40: 36553 | H40: 992 | I40: 41.33333333 | J40: 372
A41: 2020-01-19T06:29:00 | B41: 578383 | F41: 542822 | G41: 35561 | H41: 1129 | I41: 47.04166667 | J41: 423.375
A42: 2020-01-17T06:54:00 | B42: 577254 | F42: 542822 | G42: 34432 | H42: 595 | I42: 24.79166667 | J42: 223.125
A43: 2020-01-16T06:23:00 | B43: 576659 | F43: 542822 | G43: 33837 | H43: 1240 | I43: 51.66666667 | J43: 465
A44: 2020-01-14T06:38:00 | B44: 575419 | F44: 542822 | G44: 32597 | H44: 583 | I44: 24.29166667 | J44: 218.625
A45: 2020-01-13T07:51:00 | B45: 574836 | F45: 542822 | G45: 32014 | H45: 574836 | I45: 23951.5 | J45: 215563.5
A46: 2020-01-12T08:49:00 | B46: 0 | F46: 542822 | G46: -542822 | H46: -3.55 | I46: -0.1479166667 | J46: -1.33125
A47: 2020-01-09T05:46:00 | B47: 3.55 | F47: 542822 | G47: -542818.45 | H47: -571995.45 | I47: -23833.14375 | J47: -214498.2937
A48: 2020-01-08T06:45:00 | B48: 571999 | F48: 542822 | G48: 29177 | H48: 570 | I48: 23.75 | J48: 213.75
A49: 2020-01-07T06:41:00 | B49: 571429 | F49: 542822 | G49: 28607 | H49: 529 | I49: 22.04166667 | J49: 198.375
A50: 2020-01-06T07:22:00 | B50: 570900 | F50: 542822 | G50: 28078 | H50: 519 | I50: 21.625 | J50: 194.625
A51: 2020-01-05T06:46:00 | B51: 570381 | F51: 542822 | G51: 27559 | H51: 556 | I51: 23.16666667 | J51: 208.5
A52: 2020-01-04T06:22:00 | B52: 569825 | F52: 542822 | G52: 27003 | H52: 547 | I52: 22.79166667 | J52: 205.125
A53: 2020-01-03T07:30:00 | B53: 569278 | F53: 542822 | G53: 26456 | H53: 562 | I53: 23.41666667 | J53: 210.75
A54: 2020-01-02T07:33:00 | B54: 568716 | F54: 542822 | G54: 25894 | H54: 1109 | I54: 46.20833333 | J54: 415.875
A55: 2019-12-31T06:32:00 | B55: 567607 | F55: 542822 | G55: 24785 | H55: 523 | I55: 21.79166667 | J55: 196.125
A56: 2019-12-30T06:26:00 | B56: 567084 | F56: 542822 | G56: 24262 | H56: 578 | I56: 24.08333333 | J56: 216.75
A57: 2019-12-29T06:01:00 | B57: 566506 | F57: 542822 | G57: 23684 | H57: 535 | I57: 22.29166667 | J57: 200.625
A58: 2019-12-28T07:25:00 | B58: 565971 | F58: 542822 | G58: 23149 | H58: 600.6 | I58: 25.025 | J58: 225.225
A59: 2019-12-27T06:40:00 | B59: 565370.4 | F59: 542822 | G59: 22548.4 | H59: 577.4 | I59: 24.05833333 | J59: 216.525
A60: 2019-12-26T06:39:00 | B60: 564793 | F60: 542822 | G60: 21971 | H60: 640 | I60: 26.66666667 | J60: 240
A61: 2019-12-25T05:22:00 | B61: 564153 | F61: 542822 | G61: 21331 | H61: 989 | I61: 41.20833333 | J61: 370.875
A62: 2019-12-23T06:23:00 | B62: 563164 | F62: 542822 | G62: 20342 | H62: 571 | I62: 23.79166667 | J62: 214.125
A63: 2019-12-22T05:57:00 | B63: 562593 | F63: 542822 | G63: 19771 | H63: 552 | I63: 23 | J63: 207
A64: 2019-12-21T06:01:00 | B64: 562041 | F64: 542822 | G64: 19219 | H64: 549 | I64: 22.875 | J64: 205.875
A65: 2019-12-20T06:33:00 | B65: 561492 | F65: 542822 | G65: 18670 | H65: 550 | I65: 22.91666667 | J65: 206.25
A66: 2019-12-19T06:03:00 | B66: 560942 | F66: =VLOOKUP($E$2,A:B,2,) -> 542822 | G66: 18120 | H66: 2052 | I66: 85.5 | J66: 769.5
A67: 2019-12-15T06:34:00 | B67: 558890 | F67: 542822 | G67: =B67-F67 -> 16068 | H67: =G67-G68 -> 1074 | I67: =H67/24 -> 44.75 | J67: =I67*9 -> 402.75
A68: 2019-12-13T06:56:00 | B68: 557816 | F68: 542822 | G68: 14994 | H68: 1019 | I68: 42.45833333 | J68: 382.125
A69: 2019-12-11T06:17:00 | B69: 556797 | F69: 542822 | G69: 13975 | H69: 1912 | I69: 79.66666667 | J69: 717
A70: 2019-12-07T06:38:00 | B70: 554885 | F70: 542822 | G70: 12063 | H70: 869 | I70: 36.20833333 | J70: 325.875
A71: 2019-12-05T07:48:00 | B71: 554016 | F71: 542822 | G71: 11194 | H71: 479 | I71: 19.95833333 | J71: 179.625
A72: 2019-12-04T06:10:00 | B72: 553537 | F72: 542822 | G72: 10715 | H72: 436 | I72: 18.16666667 | J72: 163.5
A73: 2019-12-03T06:34:00 | B73: 553101 | F73: 542822 | G73: 10279 | H73: 421 | I73: 17.54166667 | J73: 157.875
A74: 2019-12-02T07:32:00 | B74: 552680 | F74: 542822 | G74: 9858 | H74: 0 | I74: 0 | J74: 0
A75: 2019-12-02T07:32:00 | B75: 552680 | F75: 542822 | G75: 9858 | H75: 509 | I75: 21.20833333 | J75: 190.875
A76: 2019-12-01T06:41:00 | B76: 552171 | F76: 542822 | G76: 9349 | H76: 479 | I76: 19.95833333 | J76: 179.625
A77: 2019-11-30T08:33:00 | B77: 551692 | F77: 542822 | G77: 8870 | H77: 519 | I77: 21.625 | J77: 194.625
A78: 2019-11-29T07:58:00 | B78: 551173 | F78: 542822 | G78: 8351 | H78: 590 | I78: 24.58333333 | J78: 221.25
A79: 2019-11-28T05:54:00 | B79: 550583 | F79: 542822 | G79: 7761 | H79: 545 | I79: 22.70833333 | J79: 204.375
A80: 2019-11-27T07:07:00 | B80: 550038 | F80: 542822 | G80: 7216 | H80: 1110 | I80: 46.25 | J80: 416.25
A81: 2019-11-25T06:08:00 | B81: 548928 | F81: 542822 | G81: 6106 | H81: 502 | I81: 20.91666667 | J81: 188.25
A82: 2019-11-24T06:48:00 | B82: 548426 | F82: 542822 | G82: 5604 | H82: 563 | I82: 23.45833333 | J82: 211.125
A83: 2019-11-23T06:34:00 | B83: 547863 | F83: 542822 | G83: 5041 | H83: 536 | I83: 22.33333333 | J83: 201
A84: 2019-11-22T06:46:00 | B84: 547327 | F84: 542822 | G84: 4505 | H84: 486 | I84: 20.25 | J84: 182.25
A85: 2019-11-21T06:59:00 | B85: 546841 | F85: 542822 | G85: 4019 | H85: 504 | I85: 21 | J85: 189
A86: 2019-11-20T07:35:00 | B86: 546337 | F86: 542822 | G86: 3515 | H86: 456 | I86: 19 | J86: 171
A87: 2019-11-19T08:32:00 | B87: 545881 | F87: 542822 | G87: 3059 | H87: 516 | I87: 21.5 | J87: 193.5
A88: 2019-11-18T06:02:00 | B88: 545365 | F88: 542822 | G88: 2543 | H88: 488.5 | I88: 20.35416667 | J88: 183.1875
A89: 2019-11-17T05:56:00 | B89: 544876.5 | F89: 542822 | G89: 2054.5 | H89: 469.5 | I89: 19.5625 | J89: 176.0625
A90: 2019-11-16T07:22:00 | B90: 544407 | F90: 542822 | G90: 1585 | H90: 513 | I90: 21.375 | J90: 192.375
A91: 2019-11-15T06:58:00 | B91: 543894 | F91: 542822 | G91: 1072 | H91: 504 | I91: 21 | J91: 189
A92: 2019-11-14T11:11:00 | B92: 543390 | F92: 542822 | G92: 568 | H92: 568 | I92: 23.66666667 | J92: 213
A93: 2019-11-13T09:16:00 | B93: 542822 | F93: 542822 | G93: 0 | H93: =G93-#REF! -> 
